Cogmind - Beta 15 --- EXPLORER MODE // 2025.07.19 @ 15:42:07 Player: FrigidRock Result: Destroyed by H-88 Terminator with KE Penetrator Performance ------------- Evolutions (9) 4500 Regions Visited (32) 6400 Robots Destroyed (679) 3395 Value Destroyed (43834) 43834 Prototype IDs (79) 1580 Alien Tech Used (15) 3000 Bonus (41124) 41124 TOTAL SCORE: 103833 Bonus ------- Triggered Max Security 2000 High Alert Combat Kills 14839 Follower Combat Kills 8484 Entered Garrisons 1000 Used RIF Installer 3000 Network Hubs Disabled 600 Met Data Miner 300 Built Enhanced Grunts 300 Met R17 at Cetus 500 Used Core Reset Matrix 3000 Hacked Protovariant 500 Met R17 at Research 2000 Scanned by Researcher 1000 Pursued by Intercept 1000 Met Sigix 2000 Activated Exoskeleton 3000 Friendly Fire -2399 Cogmind --------- Core Integrity 0/1600 Matter 257/300 Energy 348/350 System Corruption 0% +Membrane Temperature Cool (0) Movement Core (50) +NEM 1 Location -1/Access Parts ------- > --- POWER (3) -------- (None) > --- PROPULSION (6) --- (None) > --- UTILITY (12) ----- (None) > --- WEAPON (5) ------- (None) > --- INVENTORY (7) ---- Phase Redirector Heavy Tesla Rifle Enhanced Nova Cannon Peak State ------------ > --- POWER ------------ Reinforced Antimatter Reactor Quantum Reactor Improved Quantum Reactor > --- PROPULSION ------- Enhanced Armored Medium Treads Biometal Medium Treads Advanced Heavy Siege Treads Advanced Heavy Siege Treads > --- UTILITY ---------- Experimental Heat Sink Experimental Cooling System Huge Storage Unit Improved Energy Well Advanced Energy Well Advanced Targeting Computer Advanced Target Analyzer Improved Armor Integrity Analyzer Centrium Light Armor Plating Thermal Barrier Experimental Hardlight Generator Advanced Hacking Suite > --- WEAPON ----------- Heavy Dispersion Rifle Sigix Sheargun Sigix Sheargun Improved Potential Cannon > --- INVENTORY -------- Light Antimatter Reactor Heavy Antimatter Reactor Quantum Reactor Improved Heavy Siege Treads Advanced Heat Sink Small Storage Unit Small Battery Long-range IFF Parser Quantum Capacitor Layered Medium Armor Plating Experimental EM Shield Advanced Force Field Phase Redirector Transdimensional Reconstructor Integrity Redistributor Terrabomb Heavy Tesla Rifle Sigix Sheargun Enhanced Nova Cannon Potential Cannon Null Cannon Heavy Hardcell Cannon [Rating: 240] Favorites ----------- Power Heavy Antimatter Reactor Engine Light Angular Momentum Engine Power Core Micro Fission Core Reactor Heavy Antimatter Reactor Propulsion Advanced Heavy Siege Treads Treads Advanced Heavy Siege Treads Leg Flexi-carbon Leg Wheel Centrium Wheel Hover Unit Improved Antigrav System Utility Advanced Targeting Computer Device Advanced Heat Sink Storage Huge Storage Unit Processor Advanced Targeting Computer Hackware Relay Coupler [Sentry] Protection Layered Medium Armor Plating Artifact Core Physics Calibrator Weapon Heavy Dispersion Rifle Energy Gun Heavy Dispersion Rifle Energy Cannon Heavy Phase Cannon Ballistic Gun Enhanced Autogun Ballistic Cannon Linear Accelerator Launcher Heavy Rocket Launcher Special Weapon Remote Datajack Slashing Weapon Centrium Greatsword Build | -11 -10 -10 -9 -9 -8 -8 -7 -7 -7 -7 -7 -7 -6 -6 -6 -6 -6 -5 -5 -5 -5 -5 -4 -4 -4 -4 -3 -3 -2 -2 -2 -1 ------- Run | Yrd Mat Min Mat Min Mat Gar Fac Gar Fac Low Low Dat Pro Fac Gar Fac Gar Fac Ext Cet Arc Hub Fac Was Fac Gar Res Tes Res Qua Sec Acc Slots Evolved 19 | . 1 . 2 . 2 . 2 . . . . . . 2 . . . 2 . . . . 2 . . . 2 . 2 . . 2 Power 2 | . . . . . . . . . . . . . . 1 . . . . . . . . . . . . . . . . . 1 Propulsion 4 | . 1 . 1 . . . . . . . . . . . . . . . . . . . 1 . . . . . . . . 1 Utility 10 | . . . 1 . 2 . 2 . . . . . . . . . . 2 . . . . 1 . . . 2 . . . . . Weapon 3 | . . . . . . . . . . . . . . 1 . . . . . . . . . . . . . . 2 . . . Parts Attached 371 | 8 3 . 7 2 16 7 1 1 17 . 1 . 3 2 11 13 14 4 5 5 1 5 16 1 58 5 22 37 21 30 41 14 Power 43 | 1 . . 2 . 2 . . . 1 . 1 . 1 . 1 3 3 . . 1 1 . 1 . 7 . 4 5 2 4 2 1 Engine 12 | 1 . . 2 . 2 . . . 1 . 1 . . . 1 2 . . . . . . . . 2 . . . . . . . Core 4 | . . . . . . . . . . . . . . . . 1 . . . . . . . . 2 . 1 . . . . . Reactor 27 | . . . . . . . . . . . . . 1 . . . 3 . . 1 1 . 1 . 3 . 3 5 2 4 2 1 Propulsion 82 | 2 1 . 1 . 7 3 . . 6 . . . . 2 4 5 2 1 . . . 1 6 . 19 . 8 3 2 2 3 4 Treads 19 | . . . . . . . . . . . . . . . . . . . . . . . . . . . 5 3 2 2 3 4 Leg 49 | 2 1 . 1 . 7 3 . . 4 . . . . 2 4 5 2 1 . . . 1 6 . 7 . 3 . . . . . Wheel 8 | . . . . . . . . . . . . . . . . . . . . . . . . . 8 . . . . . . . Hover 6 | . . . . . . . . . 2 . . . . . . . . . . . . . . . 4 . . . . . . . Flight . | . . . . . . . . . . . . . . . . . . . . . . . . . . . . . . . . . Utility 171 | 4 1 . 1 . 3 4 1 1 7 . . . 2 . 3 4 6 2 4 2 . 3 8 . 21 3 8 18 12 19 26 8 Device 70 | . 1 . . . 2 . . . 3 . . . . . 2 . 1 . 2 . . 2 4 . 8 . . 7 8 9 15 6 Storage 17 | 1 . . . . . . 1 . . . . . 1 . . 1 . . . . . . . . 2 . 1 5 1 3 . 1 Processor 26 | 2 . . 1 . . 3 . . 2 . . . . . . 1 . . . . . 1 3 . 2 . 2 1 2 2 4 . Hackware 31 | . . . . . . . . . . . . . . . 1 2 4 2 2 1 . . 1 . 3 3 4 3 1 1 3 . Protection 26 | 1 . . . . 1 1 . 1 2 . . . 1 . . . 1 . . 1 . . . . 6 . 1 2 . 4 3 1 Artifact 1 | . . . . . . . . . . . . . . . . . . . . . . . . . . . . . . . 1 . Weapon 75 | 1 1 . 3 2 4 . . . 3 . . . . . 3 1 3 1 1 2 . 1 1 1 11 2 2 11 5 5 10 1 Energy Gun 20 | . . . . . 1 . . . . . . . . . . . 2 1 . . . . . . . . 1 3 4 1 7 . Energy Cannon 20 | . . . . . . . . . 1 . . . . . 2 . . . . 1 . . . . 6 . 1 4 1 2 2 . Ballistic Gun 12 | 1 . . 3 1 3 . . . . . . . . . . . . . . . . 1 . . 1 . . 1 . . 1 . Ballistic Cannon 12 | . 1 . . 1 . . . . 1 . . . . . . 1 1 . . . . . . 1 2 1 . 2 . 1 . . Launcher 6 | . . . . . . . . . 1 . . . . . . . . . 1 1 . . . . . . . 1 . 1 . 1 Special Weapon 4 | . . . . . . . . . . . . . . . 1 . . . . . . . 1 . 1 1 . . . . . . Impact Weapon . | . . . . . . . . . . . . . . . . . . . . . . . . . . . . . . . . . Slashing Weapon 1 | . . . . . . . . . . . . . . . . . . . . . . . . . 1 . . . . . . . Piercing Weapon . | . . . . . . . . . . . . . . . . . . . . . . . . . . . . . . . . . Special Melee Weapon . | . . . . . . . . . . . . . . . . . . . . . . . . . . . . . . . . . Unidentified Prototypes 57 | . . . 1 . 3 . . . 5 . . . . . . . . 1 . 1 . . 1 . 2 . 2 20 2 10 8 1 Corrupted Parts 3 | . . . . . . . . . . . . . . . 2 . . . . . . 1 . . . . . . . . . . System Corruption 12 | . . . . . . . . . . . . . . . 4 . . . . . . 8 . . . . . . . . . . Parts Lost 62 | . . . . . . 2 . . . . 1 . . . 5 . 1 1 . . . 6 . 3 8 . . 2 1 4 4 24 Power 10 | . . . . . . . . . . . 1 . . . 1 . . 1 . . . 1 . . 2 . . . . . . 4 Propulsion 11 | . . . . . . . . . . . . . . . 2 . 1 . . . . 2 . 1 1 . . . . . . 4 Utility 30 | . . . . . . 2 . . . . . . . . 1 . . . . . . 2 . 1 4 . . 2 1 4 3 10 Weapon 11 | . . . . . . . . . . . . . . . 1 . . . . . . 1 . 1 1 . . . . . 1 6 Highest Loss Streak 11 | . . . . . . 1 . . . . 1 . . . 5 . 1 1 . . . 5 . 3 3 . . 1 1 1 3 11 To Critical Strikes 2 | . . . . . . . . . . . . . . . . . . . . . . . . . . . . . . . . 2 Average Backups 12 | . 1 1 1 3 4 5 5 5 7 8 7 8 9 8 8 11 14 13 10 8 10 11 11 11 13 9 9 11 12 18 17 18 Power 1 | . 1 1 1 1 1 1 1 1 1 1 . 1 1 1 1 2 1 1 . . 1 2 1 1 . . 1 1 1 3 1 1 Propulsion 1 | . . . . . . 1 . . 1 1 1 1 1 1 . . 1 . . . 2 2 1 . 4 . . . . 2 2 . Utility 5 | . . . . 2 1 1 1 1 1 3 3 3 3 4 4 7 10 9 6 5 5 5 6 7 3 7 8 7 5 5 6 7 Weapon 3 | . . . . . 1 2 2 2 2 2 2 2 2 1 . . 1 2 3 2 1 1 1 1 3 . . 2 4 7 5 5 Tool/Special . | . . . . . . . . . . . . . . . . . . . . . . . . . . . . . . . . . Unused Backups 52 | . . . 1 . 1 . 1 . 3 . . . . . 1 3 4 1 . . . . . 6 10 1 1 5 1 4 3 6 Power 9 | . . . 1 . . . . . . . . . . . . 2 1 . . . . . . . . . . 2 . 2 1 . Propulsion 7 | . . . . . . . . . 1 . . . . . . . 1 . . . . . . . 3 . . . . . 2 . Utility 24 | . . . . . 1 . . . . . . . . . 1 1 1 1 . . . . . 5 1 1 1 3 1 2 . 5 Weapon 8 | . . . . . . . 1 . . . . . . . . . 1 . . . . . . 1 4 . . . . . . 1 Tool/Special 4 | . . . . . . . . . 2 . . . . . . . . . . . . . . . 2 . . . . . . . Average Slot Usage (%) 89 | . 92 100 92 100 91 96 89 99 99 100 100 86 100 97 99 94 98 91 88 96 94 89 89 80 76 93 88 87 86 90 89 75 Engine 1 | . 12 12 10 10 8 8 7 7 7 7 7 7 5 5 8 9 1 . . . . . . . . . . . . . . . Reactor 6 | . . . . . . . . . . . . . 1 5 3 . 8 9 10 11 11 10 9 8 4 10 9 9 8 7 8 9 Treads 5 | . . . . . . . . . . . . . . . . . . . . . . . . . . . 8 13 12 11 12 11 Leg 12 | . 34 37 38 40 33 33 28 28 27 28 28 28 28 24 24 25 24 21 22 22 22 21 24 20 5 25 7 . . . . . Wheel 1 | . . . . . . . . . . . . . . . . . . . . . . . . . 14 . . . . . . . Device 15 | . 4 12 10 10 13 16 14 14 10 7 7 7 7 6 10 8 7 5 6 9 11 11 9 15 11 16 12 14 21 25 24 14 Storage 5 | . . . . . . . 4 7 7 7 7 7 7 6 6 6 6 5 5 5 5 5 5 4 4 5 4 4 4 8 5 9 Processor 9 | . 12 12 14 20 16 13 14 14 20 21 21 21 21 18 18 12 12 11 11 11 11 10 12 12 5 . . 4 4 7 8 9 Hackware 8 | . . . . . . . . . . . . . . . 1 13 11 15 15 12 11 7 8 4 6 17 26 22 10 1 2 2 Protection 6 | . 7 . . . 2 7 7 13 11 14 14 14 14 12 6 . 3 4 5 10 11 7 5 4 7 5 4 5 7 6 6 2 Energy Gun 6 | . . . . . . . . . . . . . . . . . 7 10 4 5 3 1 . . . . 3 . 5 19 15 8 Energy Cannon 3 | . . . . . . . . . . . . . . . 7 7 1 . . 1 2 5 5 4 6 11 5 3 4 . 3 3 Ballistic Gun 2 | . 12 12 15 12 14 16 14 14 8 7 7 . 7 5 . . . . . . . . 4 4 . . . . . . . . Ballistic Cannon 1 | . 6 12 4 7 1 . . . 5 7 7 1 7 12 6 1 4 . . . 1 1 1 2 2 1 . 3 3 . . . Special Weapon 1 | . . . . . . . . . . . . . . . 1 6 3 4 5 4 3 2 3 1 1 1 4 2 2 . . . Peak Build Rating 240 | 6 8 8 21 20 38 40 41 43 57 46 46 46 50 60 67 73 90 91 89 96 98 101 117 118 115 114 132 171 197 212 224 240 Average Rating 126 | 4 7 8 15 19 29 35 40 42 45 46 45 38 48 57 63 62 82 84 79 91 91 92 100 85 89 110 126 148 183 204 208 204 On Entrance 72 | . 6 8 8 18 20 34 40 41 43 46 46 46 46 50 59 67 70 90 75 80 93 91 64 117 2 113 111 124 163 192 204 219 Naked Turns 162 | . . . . . . . . . . . . . . . . . . . . . . . . 28 19 . . . . . . 115 Heaviest Build 215 | 18 11 11 16 19 22 19 23 24 35 35 35 34 43 58 68 69 84 80 81 95 92 97 94 92 146 83 77 112 197 198 206 215 Greatest Support 240 | 20 30 30 45 45 59 65 62 62 70 70 70 70 70 73 73 80 88 88 88 88 88 88 103 95 115 115 190 195 195 195 195 240 Greatest Overweight (x) 2 | 1 . . . . . . . . . . . . . . 1 . 1 1 . 1 1 1 1 . 2 . . . 1 1 1 1 Average Overweight (x) . | . . . . . . . . . . . . . . . . . . . . . . . . . . . . . . . . . Largest Inventory Capacity 27 | 10 5 5 5 5 5 5 8 8 8 8 8 8 10 10 10 15 15 15 15 15 15 15 15 15 25 10 10 15 25 25 27 27 Average Capacity 16 | 5 5 5 5 5 5 5 6 8 8 8 8 8 9 10 10 13 15 15 15 15 15 15 15 12 18 10 10 13 20 25 25 24 Most Carried 27 | 1 1 1 3 4 5 5 5 7 8 8 8 8 10 10 9 15 15 15 13 11 11 12 15 14 22 10 10 15 23 25 27 27 Average Carried 14 | . 1 1 1 3 4 5 5 5 7 8 7 8 9 8 8 11 14 13 10 9 10 11 11 11 13 9 9 12 14 24 24 21 Final Capacity 27 | 5 5 5 5 5 5 5 8 8 8 8 8 8 10 10 10 15 15 15 15 15 15 15 15 5 10 10 10 15 25 25 27 7 Final Carried 25 | 1 1 1 3 4 5 5 5 7 8 8 8 8 10 8 9 15 15 11 11 10 11 11 14 5 10 10 10 15 23 24 25 3 Class Distribution -------------------- 21% | Hacker-Tank 14% | Botlord-Tank 6% | Alien-Tank 6% | Scavenger-Tank 6% | Bothacker-Tank 6% | Botlord-Mutant 5% | Botlord-Gunner 5% | Hacker-Mutant 4% | Scavenger-Skirmisher 4% | Scavenger-Mutant 3% | Bothacker-Mutant 3% | Bothacker-Gunner Dominant Class ---------------- Hacker-Mutant | -10/Materials Hacker-Mutant | -10/Mines Hacker-Mutant | -9/Materials Hacker-Mutant | -9/Mines Hacker-Mutant | -8/Materials Scavenger-Mutant | -8/Garrison Scavenger-Mutant | -7/Factory Scavenger-Mutant | -7/Garrison Scavenger-Skirmisher | -7/Factory Scavenger-Skirmisher | -7/Lower Caves Scavenger-Skirmisher | -7/Lower Caves Scavenger-Mutant | -7/Data Miner Hacker-Skirmisher | -6/Proximity Caves Hacker-Skirmisher | -6/Factory Hacker-Skirmisher | -6/Garrison Bothacker-Gunner | -6/Factory Botlord-Gunner | -6/Garrison Botlord-Gunner | -5/Factory Botlord-Mutant | -5/Extension Commander-Mutant | -5/Cetus Commander-Mutant | -5/Archives Commander-Mutant | -5/Hub_04(d) Botlord-Gunner | -4/Factory Botlord-Gunner | -4/Waste Bothacker-Tank | -4/Factory Botlord-Tank | -4/Garrison Botlord-Tank | -3/Research Botlord-Tank | -3/Testing Hacker-Tank | -2/Research Scavenger-Tank | -2/Quarantine Hacker-Tank | -2/Section 7 Alien-Tank | -1/Access Resources | -11 -10 -10 -9 -9 -8 -8 -7 -7 -7 -7 -7 -7 -6 -6 -6 -6 -6 -5 -5 -5 -5 -5 -4 -4 -4 -4 -3 -3 -2 -2 -2 -1 ----------- Run | Yrd Mat Min Mat Min Mat Gar Fac Gar Fac Low Low Dat Pro Fac Gar Fac Gar Fac Ext Cet Arc Hub Fac Was Fac Gar Res Tes Res Qua Sec Acc Matter Collected 11878 | 176 43 66 406 160 604 290 52 274 728 201 85 . 137 137 534 324 562 130 255 132 91 287 332 84 1425 295 240 1224 807 709 1053 35 Remotely . | . . . . . . . . . . . . . . . . . . . . . . . . . . . . . . . . . Salvage Created 33405 | . 81 . 795 8 828 345 116 192 490 154 83 . 88 69 344 1015 367 115 169 539 . 1317 716 259 2741 999 677 877 2925 3588 5659 7849 Parts 1394 | . 2 . 48 . 48 19 4 12 38 14 9 . 6 3 12 46 15 8 5 23 . 62 36 3 105 27 21 38 100 164 207 319 Haulers Intercepted 15 | . 1 . 2 . 2 . . . . . . . . . . 1 . . . . . . . . 3 . 2 . 4 . . . Recyclers Shooed 5 | . . . 1 . 1 . . . . . . . . . . 1 . . . . . . 1 . . . 1 . . . . . Parts Field Recycled . | . . . . . . . . . . . . . . . . . . . . . . . . . . . . . . . . . Retrieved Matter . | . . . . . . . . . . . . . . . . . . . . . . . . . . . . . . . . . Parts Self-Destructed . | . . . . . . . . . . . . . . . . . . . . . . . . . . . . . . . . . Prevented . | . . . . . . . . . . . . . . . . . . . . . . . . . . . . . . . . . Kills | -11 -10 -10 -9 -9 -8 -8 -7 -7 -7 -7 -7 -7 -6 -6 -6 -6 -6 -5 -5 -5 -5 -5 -4 -4 -4 -4 -3 -3 -2 -2 -2 -1 ------- Run | Yrd Mat Min Mat Min Mat Gar Fac Gar Fac Low Low Dat Pro Fac Gar Fac Gar Fac Ext Cet Arc Hub Fac Was Fac Gar Res Tes Res Qua Sec Acc Combat Hostiles Destroyed 521 | . 1 . 15 1 10 6 . 4 14 5 5 . 2 1 7 9 9 2 2 6 . 5 9 1 34 13 9 17 32 52 115 135 Melee 12 | . . . . . . . . . . . . . . . . . . . . . . . . . 10 . . . . . . 2 Guns 178 | . . . 8 . 10 6 . 4 5 . 1 . . . 1 . 1 2 1 1 . 2 2 . . . 2 . 10 51 48 23 Cannons 188 | . 1 . 7 1 . . . . 6 5 4 . 2 1 4 8 8 . 1 1 . 3 7 1 23 12 7 14 19 . 18 35 AOE 121 | . . . . . . . . . 3 . . . . . 2 . . . . 2 . . . . . . . . 1 1 42 70 Classes Destroyed 27 | . 2 . 7 . 1 1 . 1 2 . . . . . 2 . . . . . . 1 . 1 1 . . 2 . 2 4 . Worker 26 | . . . 1 . 1 . . . 5 . . . . . . . . 1 . . . 7 . . 2 . 1 2 3 1 1 1 Builder 26 | . . . 1 . 1 . . . 3 . . . . . . 2 . . . . . 7 . . 2 . . . 1 3 1 5 Tunneler 2 | . . . . . . . . . . . . . . . . . . . . . . 2 . . . . . . . . . . Hauler 15 | . 1 . 2 . 2 . . . . . . . . . . 1 . . . . . . . . 3 . 2 . 4 . . . Recycler 16 | . . . 1 . 1 . 1 . . . . . . . . 3 . . . . . 1 . . 4 . . . 1 1 2 1 Carrier 4 | . . . . . . . . . . . . . . . . . . . . . . . . . . . . . . . 1 3 Mechanic 15 | . . . . . . . . . . . . . . . . . . . . . . . . . 1 . . . . . 5 9 Operator 7 | . . . . . 1 . 1 . . . . . . . . 1 . . . . . 2 . . . . . . . . 1 1 Watcher 33 | . . . 3 . 3 . . . 2 . . . . . . 2 . 1 2 1 . 1 2 . 5 . . . 4 2 3 2 Swarmer 49 | . . . 3 . . . . 1 2 3 5 . . . 1 1 1 2 1 . . . . . 8 . 5 1 3 5 2 5 Saboteur 12 | . . . . . . . . . . . . . . . . . . . . . . . . . . . . . . . 1 11 Grunt 168 | . 1 . 9 1 8 3 . . 6 . . . 1 . 1 . 3 . . 2 . 5 5 . 9 3 . 4 10 15 36 46 Brawler 7 | . . . . . . . . . . . . . . . 2 . . . . . . . . . . . . . . . 3 2 Duelist 23 | . . . 1 . . . . . . . . . . . . 1 . . . . . . . . . 1 . . . . 10 10 Protector 18 | . . . . . . . . . 1 . . . . . . 1 . . . . . 1 . . . . . . . 1 8 6 Researcher 2 | . . . . . . . . . . . . . . . . . . . . . . . . . . . . 1 . . 1 . Sentry 34 | . . . 2 . 2 . . 2 . . . . . 1 . . 2 . 1 . . 2 . . 5 5 . . 2 . 8 2 Specialist 9 | . . . . . . 3 . . 2 . . . . . . 1 . . . . . . . . . . . . . 3 . . Hunter 41 | . . . . . . . . . 1 1 . . . . 1 1 2 . . . . 2 1 . 4 2 4 . 8 2 5 7 Programmer 108 | . . . . . . . . 1 2 1 . . 1 . . 4 1 . . . . . 3 . 8 1 . 10 8 20 23 25 Q-Series 4 | . . . . . . . . . . . . . . . . . . . . . . . . . . . . . . 1 3 . Behemoth 5 | . . . . . . . . . . . . . . . 2 . . . . . . . . . . 1 . . 1 . 1 . Compactor 1 | . . . . . . . . . . . . . . . . . . . . . . . . 1 . . . . . . . . Cetus Guard 4 | . . . . . . . . . . . . . . . . . . . . 4 . . . . . . . . . . . . S7 Guard 4 | . . . . . . . . . . . . . . . . . . . . . . . . . . . . . . . 4 . Enhanced Grunt 2 | . . . . . . . . . . . . . . . . . . . . . . 2 . . . . . . . . . . Lightning 3 | . . . . . . . . . . . . . . . . . . . . . . . . . . . . . . 3 . . Tracker 2 | . . . . . . . . . . . . . . . . . . . . . . . . . . . . . . . 2 . Investigator 2 | . . . . . . . . . . . . . . . . . . . . . . . . . . . . . . . 2 . Striker 10 | . . . . . . . . . . . . . . . . . . . . . . . . . . . . . . . 2 8 Executioner 18 | . . . . . . . . . . . . . . . . . . . . . . . . . . . . . . . 5 13 Alpha 7 4 | . . . . . . . . . . . . . . . . . . . . . . . . . . . . 1 . 1 2 . Fortress 1 | . . . . . . . . . . . . . . . . . . . . . . . . . . . . . . 1 . . Protovariant P 1 | . . . . . . . . . . . . . . . . . . . . . . . . . . . . 1 . . . . Packrat 1 | . . . . . . . . . . 1 . . . . . . . . . . . . . . . . . . . . . . Thug 1 | . . . . . . . . . . . . . . . . . . . . . . . . . . . . . 1 . . . Guerrilla 2 | . . . . . . . . . . . . . . . . . . . . 1 . 1 . . . . . . . . . . Best Kill Streak 38 | . 1 . 11 1 6 2 1 1 7 3 3 . 1 1 2 8 2 1 1 3 . 19 3 1 4 3 5 3 6 12 38 32 Combat Bots Only 34 | . 1 . 8 1 3 2 . 1 5 3 3 . 1 1 2 5 2 1 1 2 . 2 3 1 4 3 4 3 6 11 34 28 Max Kills in Single Turn 34 | . 1 . 1 1 2 1 1 1 2 1 1 . 1 1 1 2 1 1 1 1 . 17 1 1 1 1 2 1 3 2 34 6 Gunslinging 1 | . . . . . . . . . . . . . . . . . . . . . . . . . . . . . . 1 . 1 Exploded 31 | . . . . . . . . . 1 . . . . . 1 . . . . 1 . . . . . . . . 1 1 31 4 Melee 1 | . . . . . . . . . . . . . . . . . . . . . . . . . 1 . . . . . . 1 Uniques/NPCs Destroyed . | . . . . . . . . . . . . . . . . . . . . . . . . . . . . . . . . . Combat | -11 -10 -10 -9 -9 -8 -8 -7 -7 -7 -7 -7 -7 -6 -6 -6 -6 -6 -5 -5 -5 -5 -5 -4 -4 -4 -4 -3 -3 -2 -2 -2 -1 -------- Run | Yrd Mat Min Mat Min Mat Gar Fac Gar Fac Low Low Dat Pro Fac Gar Fac Gar Fac Ext Cet Arc Hub Fac Was Fac Gar Res Tes Res Qua Sec Acc Hostile Shots Fired 3535 | . 11 . 59 6 29 43 . 54 88 22 13 . 19 6 89 68 147 9 12 24 . 60 52 3 385 105 56 165 120 321 585 984 Missed 1099 | . 3 . 15 1 15 14 . 22 39 6 5 . 4 5 24 22 32 4 4 10 . 19 21 . 139 42 26 55 40 81 139 312 Hits 2436 | . 8 . 44 5 14 29 . 32 49 16 8 . 15 1 65 46 115 5 8 14 . 41 31 3 246 63 30 110 80 240 446 672 Melee 68 | . . . . . . . . . . . . . . . . . 7 . . . . . . 3 . . . . . 5 33 20 Projectile 2368 | . 8 . 44 5 14 29 . 32 49 16 8 . 15 1 65 46 108 5 8 14 . 41 31 . 246 63 30 110 80 235 413 652 AOE 7 | . . . . . . . . 1 1 . . . . . . . . . . . . 1 . . 3 . . . . . 1 . Critical Strikes 107 | . . . . . . . . . 1 . . . 1 . 3 . 3 1 . 5 . 4 1 2 10 4 1 6 5 11 23 26 Actively Blocked 11 | . . . . . . . . . . . . . . . . . . . . . . . . . 6 3 . . . 1 1 . Part Disruptions 8 | . . . . . . . . . . . . . . . . 1 . . . . . . . . 2 . . 1 . 2 1 1 Damage Taken 24596 | . 37 . 312 33 140 259 . 218 489 156 75 . 180 3 867 558 1047 125 124 162 . 1047 398 80 3094 906 371 980 810 1913 3474 6738 Core 3191 | . 6 . 73 . 11 54 . 3 39 9 9 . 14 . 62 69 97 9 . 37 . 118 14 22 294 55 13 62 60 88 404 1569 Absorbed by Shields 8021 | . . . . . . . . 19 . . . . . . . . . . 39 134 . 45 . . 124 . . 294 510 1144 2547 3165 Reduced by Siege Mode 141 | . . . . . . . . . . . . . . . . . . . . . . . . . . . . 30 . 45 66 . Redirected to Shielding 397 | . . . . . . 5 . 32 29 7 . . . . 26 . . . . . . . . . . . . 10 74 112 102 . Ignored by Resistances 25351 | . 27 . 201 21 85 159 . 149 346 92 46 . 108 2 509 338 645 73 97 173 . 616 242 45 1910 531 216 767 774 3131 6190 7858 Regen/Repaired (Parts) 1628 | . . . . . . . . . . . . . . . . . . . . . . . . . . . . . . . 1628 . Core Remaining (%) 83 | 100 . 97 . 81 . 88 . . . . . . 89 . . . 73 . . . . 83 . . . 66 . 94 . . 67 . Volleys Fired 1239 | . 6 . 42 4 35 30 4 33 44 18 7 . 12 3 29 42 52 16 12 22 6 35 26 14 99 47 29 75 67 137 187 106 Largest 5 | . 2 . 2 2 2 2 2 2 2 2 2 . 2 3 3 2 3 3 2 2 1 3 3 3 3 3 2 3 5 5 5 4 Hottest 506 | . 50 . 50 68 68 50 50 50 65 65 65 . 65 105 228 188 242 242 148 207 113 261 202 203 264 270 198 261 416 416 506 494 Shots Fired 3213 | . 12 . 84 8 70 60 8 66 79 36 14 . 24 9 55 66 85 21 15 30 6 89 53 41 212 99 50 133 224 588 724 252 Gun 1979 | . 6 . 61 4 68 60 8 66 37 18 7 . 12 3 2 . 29 8 4 7 . 34 23 14 . . 12 24 101 587 620 164 Cannon 1135 | . 6 . 23 4 2 . . . 36 18 7 . 12 6 40 61 47 2 2 14 4 53 27 27 211 93 36 92 120 1 103 88 Launcher 28 | . . . . . . . . . 6 . . . . . 12 . . . . 9 . . . . . . . . . . 1 . Special 71 | . . . . . . . . . . . . . . . 1 5 9 11 9 . 2 2 3 . 1 6 2 17 3 . . . Kinetic 838 | . 12 . 84 8 70 60 8 66 73 36 14 . 24 9 18 19 27 2 2 7 . 26 27 27 73 10 . 59 47 . 27 3 Thermal 1972 | . . . . . . . . . . . . . . . 11 38 49 8 4 14 4 61 23 14 105 83 48 57 156 485 639 173 Explosive 18 | . . . . . . . . . 6 . . . . . 12 . . . . . . . . . . . . . . . . . Electromagnetic 211 | . . . . . . . . . . . . . . . 13 4 . . . 9 . . . . 33 . . . 18 103 31 . Slashing 103 | . . . . . . . . . . . . . . . . . . . . . . . . . . . . . . . 27 76 Robot Hit Streak 104 | . 6 . 17 5 21 24 17 24 9 9 3 . 7 10 22 34 20 12 17 31 2 19 13 32 23 22 29 78 96 104 65 34 Robot Miss Streak 5 | . 1 . 1 1 2 1 1 1 2 2 1 . 1 . 1 2 2 3 . 1 . 2 1 1 3 2 4 2 1 3 3 5 Penetration Max 3 | . . . . . 1 . . . . . . . . . . 1 . . . . . 2 1 1 . . . 1 3 2 1 1 Secondary Targets 26 | . . . 2 . 1 1 . 1 . . . . . . . . . . . . . . . . . . . . 1 9 5 6 Max Gunslinging Chain 2 | . . . 1 . 1 1 . 1 . . . . . . . . . . . . . . . . . . . . 1 2 1 2 Capacitor 12 | . . . . . . . . . . . . . . . . . . . . . . . . . . . . . . . . 12 Shots Hit Robots 2475 | . 10 . 72 6 55 46 6 48 54 22 9 . 15 8 40 52 61 15 14 17 2 53 40 36 190 67 33 99 175 481 562 187 Core Hits 1140 | . 3 . 30 1 32 14 3 17 43 8 4 . 4 4 28 24 15 4 4 18 . 50 24 1 72 23 16 28 75 171 236 188 Critical Kills 91 | . . . . . . . . . 1 1 . . . . . 2 . . . . . 1 2 . 1 . 1 2 4 27 33 16 Critical Parts Destroyed 139 | . . . . . 1 . . 1 . . . . . . . . . . . . . 1 3 1 . . . . 8 56 60 8 Critical Strikes 316 | . . . . 1 1 . . 1 2 5 3 . 2 1 . 3 3 . . . . 2 6 8 16 2 1 6 17 96 107 33 Burn 1 | . . . . . . . . . . . . . . . . . . . . . . . . . . . . . 1 . . . Meltdown 14 | . . . . . . . . . . . . . . . . 2 . . . . . . . . 1 . 1 2 2 . 3 3 Destroy 249 | . . . . . 1 . . 1 1 1 . . . . . . . . . . . 2 5 6 . . . . 10 96 104 22 Blast 33 | . . . . 1 . . . . 1 4 3 . 2 1 . 1 3 . . . . . 1 2 4 2 . 4 4 . . . Sever 19 | . . . . . . . . . . . . . . . . . . . . . . . . . 11 . . . . . . 8 Melee Attacks 41 | . . . . . . . . . . . . . . . . . . . . . . . . . 41 . . . . . . . Impact . | . . . . . . . . . . . . . . . . . . . . . . . . . . . . . . . . . Slashing 41 | . . . . . . . . . . . . . . . . . . . . . . . . . 41 . . . . . . . Piercing . | . . . . . . . . . . . . . . . . . . . . . . . . . . . . . . . . . Sneak Attacks 2 | . . . . . . . . . . . . . . . . . . . . . . . . . 2 . . . . . . . Combat Hostiles . | . . . . . . . . . . . . . . . . . . . . . . . . . . . . . . . . . Follow-up Attacks . | . . . . . . . . . . . . . . . . . . . . . . . . . . . . . . . . . Damage Inflicted 149352 | . 158 20 1128 147 1301 779 101 868 2283 349 231 . 338 195 1863 1883 1874 197 228 1290 . 4241 1057 1066 8402 2183 1083 3967 8055 13134 54898 36033 Guns 40880 | . 62 . 743 35 1301 779 101 868 433 99 67 . 103 49 12 . 544 170 111 105 . 542 137 104 . . 268 543 2569 12119 14747 4269 Cannons 42207 | . 96 . 385 112 . . . . 752 250 164 . 235 146 904 1883 1330 . 33 199 . 1160 920 962 5510 2183 815 3325 5175 . 5280 10388 Explosions 63071 | . . . . . . . . . 1065 . . . . . 947 . . . . 986 . 2532 . . 31 . . 36 275 963 34871 21365 Melee 2819 | . . . . . . . . . . . . . . . . . . . . . . . . . 2819 . . . . . . . Ramming 375 | . . 20 . . . . . . 33 . . . . . . . . 27 84 . . 7 . . 42 . . 63 36 52 . 11 Kinetic 17333 | . 158 . 1128 147 1301 779 101 868 1185 349 231 . 338 195 318 407 753 . 33 . . 329 263 547 2052 206 . 2140 2604 . 901 . Thermal 119187 | . . . . . . . . . . . . . . . 316 1376 1121 170 111 304 . 2286 794 519 2772 1977 1083 1764 5391 12967 52456 33780 Explosive 2043 | . . . . . . . . . 1065 . . . . . 947 . . . . . . . . . 31 . . . . . . . Electromagnetic 4602 | . . . . . . . . . . . . . . . 282 100 . . . 986 . 1619 . . 686 . . . 24 115 790 . Impact . | . . . . . . . . . . . . . . . . . . . . . . . . . . . . . . . . . Slashing 5812 | . . . . . . . . . . . . . . . . . . . . . . . . . 2819 . . . . . 751 2242 Piercing . | . . . . . . . . . . . . . . . . . . . . . . . . . . . . . . . . . Highest Corruption 16 | . . . . . . . . . 1 1 1 1 1 . 4 5 8 . 3 4 4 16 1 6 14 14 . 4 2 6 1 . Average Corruption 3 | . . . . . . . . . 1 1 1 1 1 . 3 4 7 . 2 3 4 4 1 4 7 14 . 2 1 2 1 . Corruption Purged 4 | . . . . . . . . . . . . . . . . . . . . . . . 1 3 . . . . . . . . Corruption Blocked . | . . . . . . . . . . . . . . . . . . . . . . . . . . . . . . . . . Effects 382 | . . . . . . . . . 4 2 2 1 4 . 10 28 26 . 29 7 5 19 2 1 69 52 . 27 15 50 29 . Message Errors 86 | . . . . . . . . . 1 1 1 1 1 . 2 8 6 . 2 2 2 6 1 1 11 14 . 5 3 10 8 . Matter Fused 82 | . . . . . . . . . . . 1 . . . 3 6 5 . 9 1 2 3 . . 18 8 . 7 3 13 3 . Heat Flow Errors 54 | . . . . . . . . . 2 . . . 1 . 1 5 4 . 6 1 . . . . 9 8 . 5 4 6 2 . Energy Discharges 37 | . . . . . . . . . 1 . . . 2 . 1 1 3 . 6 1 . 3 . . 3 2 . 2 1 6 5 . Parts Rejected 3 | . . . . . . . . . . . . . . . . . . . . . . . . . 2 . . 1 . . . . Parts Fused 6 | . . . . . . . . . . . . . . . . . . . . . . . . . . . . 2 2 1 1 . Data Loss (minor) 40 | . . . . . . . . . . . . . . . 1 3 2 . 3 . . . . . 13 9 . 1 2 1 5 . Data Loss (major) 20 | . . . . . . . . . . 1 . . . . . 3 . . 2 . 1 1 . . 3 3 . 1 . 4 1 . Misfires 25 | . . . . . . . . . . . . . . . 1 1 3 . 1 2 . 5 . . 4 . . 2 . 4 2 . Alerts 10 | . . . . . . . . . . . . . . . 1 1 2 . . . . . 1 . . 1 . 1 . 1 2 . Misdirections 2 | . . . . . . . . . . . . . . . . . . . . . . . . . . 2 . . . . . . Weapon Failures 17 | . . . . . . . . . . . . . . . . . 1 . . . . 1 . . 6 5 . . . 4 . . Overload Shots . | . . . . . . . . . . . . . . . . . . . . . . . . . . . . . . . . . Overflow Damage 10138 | . . . 14 . . . . . 51 . 20 . . . 22 8 44 . 9 . . 223 12 . 318 48 36 386 367 17 3866 4697 Projectiles 4097 | . . . 14 . . . . . 16 . 20 . . . 21 8 44 . . . . 4 12 . 160 48 36 367 359 . 650 2338 Explosions 5853 | . . . . . . . . . 35 . . . . . 1 . . . . . . 219 . . . . . . 6 17 3216 2359 Melee 188 | . . . . . . . . . . . . . . . . . . . 9 . . . . . 158 . . 19 2 . . . Knockbacks 72 | . . . 1 1 . . . . 2 1 1 . 2 2 4 3 4 . 2 . . 3 . . 13 1 . 17 13 2 . . Impact 5 | . . . . . . . . . . . . . . . . . . . 2 . . . . . . . . 1 1 1 . . Kinetic 61 | . . . 1 1 . . . . 2 1 1 . 2 2 4 2 3 . . . . 3 . . 13 1 . 14 11 . . . Secondary 6 | . . . . . . . . . . . . . . . . 1 1 . . . . . . . . . . 2 1 1 . . Self-Inflicted Damage 1366 | . . . . . . . . . . . . . . . 4 . . . . 16 . 209 . . 119 . . . 46 57 578 337 Shots 21 | . . . . . . . . . . . . . . . 1 . . . . 1 . 4 . . 2 . . . 2 1 1 9 Rammed 18 | . . . . . . . . . . . . . . . . . . . . . . . . . 2 . . 6 4 3 . 3 Targets Rammed 35 | . . 5 . . . . . . 4 . . . . . . . . 2 4 . . 1 . . 3 . . 6 4 3 . 3 Kicked 17 | . . 5 . . . . . . 4 . . . . . . . . 2 4 . . 1 . . 1 . . . . . . . Crushed . | . . . . . . . . . . . . . . . . . . . . . . . . . . . . . . . . . Highest Temperature 597 | . . . 5 18 2 . . . 229 40 32 . 189 128 301 402 592 138 216 296 160 393 177 14 471 412 264 199 346 374 590 597 Average Temperature 105 | . . . 1 14 2 . . . 60 18 13 . 77 55 94 95 180 62 71 119 80 108 42 10 126 89 65 78 116 115 113 106 Received Heat Transfer 3559 | . . . 216 30 99 99 . 66 114 . . . 126 . 385 72 198 21 13 8 . 86 87 . 483 114 9 171 64 173 282 643 Effects 45 | . . . . . . . . . . . . . . . 1 1 7 . . . . 3 . . 11 . . . 3 1 11 7 Shutdowns 14 | . . . . . . . . . . . . . . . . 1 2 . . . . . . . 4 . . . 1 1 3 2 Energy Bleed 6 | . . . . . . . . . . . . . . . 1 . 1 . . . . 2 . . 2 . . . . . . . Interference 17 | . . . . . . . . . . . . . . . . . 2 . . . . . . . 3 . . . 2 . 5 5 Matter Decay 3 | . . . . . . . . . . . . . . . . . 2 . . . . . . . . . . . . . 1 . Short Circuit 2 | . . . . . . . . . . . . . . . . . . . . . . 1 . . 1 . . . . . . . Damage (minor) 3 | . . . . . . . . . . . . . . . . . . . . . . . . . 1 . . . . . 2 . Siege Activations 4 | . . . . . . . . . . . . . . . . . . . . . . . . . . . . 1 . 2 1 . Total Turns 197 | . . . . . . . . . . . . . . . . . . . . . . . . . . . . 30 . 140 27 . Longest Duration 111 | . . . . . . . . . . . . . . . . . . . . . . . . . . . . 30 . 111 27 . Martial Activations . | . . . . . . . . . . . . . . . . . . . . . . . . . . . . . . . . . Shielding Activations . | . . . . . . . . . . . . . . . . . . . . . . . . . . . . . . . . . Robots Disrupted 7 | . . . . . . . . . . . . . . . 1 . . . . . . . . . . . . . 1 5 . . Combat Hostiles 3 | . . . . . . . . . . . . . . . 1 . . . . . . . . . . . . . . 2 . . Robots Corrupted 12 | . . . . . . . . . . . . . . . . . . . 1 4 . 4 . . 2 . . 1 . . . . Combat Hostiles 2 | . . . . . . . . . . . . . . . . . . . . 2 . . . . . . . . . . . . Parts Fried 30 | . . . . . . . . . . . . . . . . . . . . 5 . 12 . . 12 . . 1 . . . . Impact Corruptions 3 | . . . . . . . . . . . . . . . . . . . 1 . . . . . . . . 1 1 . . . Robots Melted 23 | . . . . . . . . . . . . . . . . 2 . . . . . . . . 1 1 1 3 2 . 8 5 Combat Hostiles 20 | . . . . . . . . . . . . . . . . 1 . . . . . . . . 1 1 . 3 2 . 7 5 Parts Melted 106 | . . . . . . . . . . . . . . . . 6 . 1 . . . 2 1 . 6 5 8 7 6 4 27 33 Heat Transferred 78764 | . . . . . . . . . . . . . . . 296 1126 1070 222 148 314 . 2107 703 481 2812 2109 1429 1624 5110 14676 20432 24105 Parts Sabotaged 1 | . . . . . . . . . . . . . . . . . . . . . . . . . . . . . . . . 1 Parts Stolen . | . . . . . . . . . . . . . . . . . . . . . . . . . . . . . . . . . Parts Stripped . | . . . . . . . . . . . . . . . . . . . . . . . . . . . . . . . . . Power Chain Reactions 15 | . . . . . . . . . . . . . . . . . . . . . . 4 . . 1 . . . 3 7 . . Alert | -11 -10 -10 -9 -9 -8 -8 -7 -7 -7 -7 -7 -7 -6 -6 -6 -6 -6 -5 -5 -5 -5 -5 -4 -4 -4 -4 -3 -3 -2 -2 -2 -1 ------- Run | Yrd Mat Min Mat Min Mat Gar Fac Gar Fac Low Low Dat Pro Fac Gar Fac Gar Fac Ext Cet Arc Hub Fac Was Fac Gar Res Tes Res Qua Sec Acc Maximum Alert Level 5 | . . . 1 . . . . 2 1 . . . . . 2 1 2 1 . . . 4 2 . . 3 1 1 1 1 5 5 Low Security (%) 81 | 100 100 100 68 100 100 100 100 22 91 . . . . 100 47 93 19 87 100 100 100 78 . 100 100 30 99 98 85 93 85 . Level 1 6 | . . . 31 . . . . 33 8 . . . . . 4 6 35 12 . . . 16 43 . . 24 . 1 14 6 . . Level 2 4 | . . . . . . . . 44 . . . . . . 47 . 44 . . . . . 56 . . 16 . . . . . . Level 3 1 | . . . . . . . . . . . . . . . . . . . . . . 4 . . . 29 . . . . . . Level 4 . | . . . . . . . . . . . . . . . . . . . . . . 1 . . . . . . . . . . Level 5 . | . . . . . . . . . . . . . . . . . . . . . . . . . . . . . . . . . High Security . | . . . . . . . . . . . . . . . . . . . . . . . . . . . . . . . . . Max Security 6 | . . . . . . . . . . . . . . . . . . . . . . . . . . . . . . . 14 99 Sterilizations 2 | . . . . . . . . . . . . . . . . . . . . . . . . . . . . . . . 1 1 Peak Influence 6228 | . 20 . 265 56 70 157 66 627 244 . . . . 30 623 242 620 277 159 112 101 1116 662 137 171 736 310 219 283 279 4056 6228 Initial 1845 | . . . . 56 . . 61 . 244 . . . . . . 242 69 241 . . . 7 392 137 20 27 310 9 . 12 . 1845 Average 319 | . 1 . 146 11 22 95 30 384 114 . . . . 2 336 81 360 53 18 47 57 129 447 99 40 410 49 29 101 43 436 4188 Influence Increases 24571 | . 27 . 450 20 316 177 31 647 556 130 120 . 75 30 693 631 711 432 632 351 124 1875 565 6 1428 749 538 1158 1422 1765 4159 4753 Destroy 0b10 Robot/C 13960 | . 20 . 300 20 200 120 . 380 360 100 100 . 40 20 400 320 400 220 360 220 80 400 240 . 680 380 260 580 860 1020 2820 3060 Destroy 0b10 Robot/NC 1015 | . 5 . 40 . 45 . 15 . 75 . . . . . . 70 . 15 40 10 . 130 20 . 85 . 35 35 85 40 125 145 Destroy Leader 2422 | . 2 . 80 . 60 . 2 40 78 30 20 . 20 10 40 106 40 32 56 10 . 94 64 . 164 40 56 92 208 144 476 458 Allied During Kill 982 | . . . . . . 2 1 67 11 . . . . . 21 29 27 35 131 71 24 170 9 . . 42 31 44 62 2 113 90 Trap Triggered on 0b10 140 | . . . . . . . . . . . . . . . . 10 . . . . . . . . . . . . . 90 40 . Successful Hack 354 | . . . . . 6 . 13 . 9 . . . . . 10 11 18 . 5 . . . . . 41 . 8 31 14 105 83 . Select Force Hacks 50 | . . . . . . . . . . . . . . . . . . . . . . . . . 50 . . . . . . . Disable Machine 408 | . . . . . . . . . 12 . . . . . . 4 . 12 . . 8 104 32 . 60 . . 28 16 28 76 28 Anti-Garrison Action 750 | . . . . . . 50 . 150 . . . . . . 100 . 200 . . . . . . . . 250 . . . . . . Destroy Structure 4100 | . . . . . 5 5 . 10 11 . . . . . 107 81 26 118 40 40 12 962 200 6 288 37 148 348 147 171 366 972 Partial Spotted 15 | . . . . . . . . . . . . . . . . . . . . . . . . . . . . . 15 . . . Lose Combat Pursuer 375 | . . . 30 . . . . . . . . . 15 . 15 . . . . . . 15 . . 60 . . . 15 165 60 . Influence Decreases 20312 | . 27 . 245 225 316 20 188 20 1183 115 135 . 75 30 70 1125 220 1052 632 347 94 818 1084 540 1416 63 1251 1181 1392 1795 1682 2971 Entered New Map 5329 | . . . . 149 . . 96 . 383 . 6 . . . . 381 60 379 . . 4 27 699 435 18 23 426 14 . 18 . 2211 Time Decay 11694 | . 27 . 225 76 316 . 92 . 570 115 119 . 75 30 . 674 . 336 545 307 90 468 345 75 1334 . 575 1095 1075 1638 1492 . Lost Part 566 | . . . . . . 20 . . . . 10 . . . 50 . 10 10 . . . 60 . 30 59 . . 7 10 30 30 240 Lost Ally 1549 | . . . 20 . . . . 20 80 . . . . . 20 41 150 90 22 40 . 210 40 . 5 40 100 65 66 20 . 520 Purge Threat 1174 | . . . . . . . . . 150 . . . . . . 29 . 237 65 . . 53 . . . . 150 . 241 89 160 . Squads Dispatched 170 | . . . 2 1 . . . . 4 . . . . . . 5 . 6 4 1 . 4 4 . 12 . 1 13 8 15 32 58 Investigation 9 | . . . 1 1 . . . . . . . . . . . 1 . 1 1 1 . . 1 . 1 . . . . 1 . . Extermination 42 | . . . . . . . . . 2 . . . . . . 1 . 2 . . . 1 . . 6 . . 7 3 11 9 . Reinforcement 34 | . . . 1 . . . . . 2 . . . . . . . . 2 3 . . 3 1 . 5 . 1 5 5 3 2 1 Assault 78 | . . . . . . . . . . . . . . . . . . . . . . . 1 . . . . 1 . . 20 56 Garrison 5 | . . . . . . . . . . . . . . . . 3 . 1 . . . . 1 . . . . . . . . . Intercept 2 | . . . . . . . . . . . . . . . . . . . . . . . . . . . . . . . 1 1 Searches Triggered . | . . . . . . . . . . . . . . . . . . . . . . . . . . . . . . . . . Data Miner Redirects 1 | . . . . . . . . . . . . . . . . . . 1 . . . . . . . . . . . . . . Construction Impeded 11 | . . . . . . . . . 1 . . . . . . . . . 2 . . 2 1 . 1 . . 1 1 1 . 1 Haulers Reinforced 7 | . . . . . . . . . 1 . . . . . . . . . . . . 1 . . 1 . . 1 1 1 1 . Active Scanning Responses . | . . . . . . . . . . . . . . . . . . . . . . . . . . . . . . . . . Cargo Convoy Interrupts 2 | . . . . . . . . . 1 . . . . . . 1 . . . . . . . . . . . . . . . . Stealth | -11 -10 -10 -9 -9 -8 -8 -7 -7 -7 -7 -7 -7 -6 -6 -6 -6 -6 -5 -5 -5 -5 -5 -4 -4 -4 -4 -3 -3 -2 -2 -2 -1 --------- Run | Yrd Mat Min Mat Min Mat Gar Fac Gar Fac Low Low Dat Pro Fac Gar Fac Gar Fac Ext Cet Arc Hub Fac Was Fac Gar Res Tes Res Qua Sec Acc Distress Signals 29 | . 1 . 2 . . . . . . . . . . . . 2 . . . 2 . 5 . . 3 . 2 1 3 1 3 4 Communications Jammed 190 | . . . . . . . . . . . . . . . . . . . . . . . . . 4 . 27 6 19 5 129 . Distress Signals 184 | . . . . . . . . . . . . . . . . . . . . . . . . . 3 . 27 5 15 5 129 . Times Spotted 1058 | . 4 . 20 1 16 6 2 18 26 5 5 . 3 1 22 24 25 22 21 12 2 25 18 6 59 20 14 36 50 66 214 315 Peak Tracking Total 30 | . 3 . 5 1 2 3 1 4 6 3 3 . 2 1 11 6 6 5 5 5 1 10 5 5 6 3 3 4 5 9 30 21 Tactical Retreats 16 | . . . 2 . . . . . . . . . 1 . 1 . . . . . . 1 . . 3 . . . 1 5 2 . Traps | -11 -10 -10 -9 -9 -8 -8 -7 -7 -7 -7 -7 -7 -6 -6 -6 -6 -6 -5 -5 -5 -5 -5 -4 -4 -4 -4 -3 -3 -2 -2 -2 -1 ------- Run | Yrd Mat Min Mat Min Mat Gar Fac Gar Fac Low Low Dat Pro Fac Gar Fac Gar Fac Ext Cet Arc Hub Fac Was Fac Gar Res Tes Res Qua Sec Acc Traps Triggered 31 | . . . 1 . 1 2 . 2 . . . . . 1 1 . 1 1 5 . . 1 1 . 3 4 . 2 1 4 . . Indirectly . | . . . . . . . . . . . . . . . . . . . . . . . . . . . . . . . . . Trap Hack Attempts . | . . . . . . . . . . . . . . . . . . . . . . . . . . . . . . . . . Triggered . | . . . . . . . . . . . . . . . . . . . . . . . . . . . . . . . . . Disarmed 9 | . . . . . 3 . . . . . . . . . . . . . . . . . . . . . . 6 . . . . Reprogrammed 25 | . . . . . . . . . . . . . . . . 4 . . . . . . . . . . . . . 15 6 . Reused 14 | . . . . . . . . . . . . . . . . 1 . . . . . . . . . . . . . 9 4 . Traps Extracted . | . . . . . . . . . . . . . . . . . . . . . . . . . . . . . . . . . Installed . | . . . . . . . . . . . . . . . . . . . . . . . . . . . . . . . . . Triggered 14 | . . . . . . . . . . . . . . . . 1 . . . . . . . . . . . . . 9 4 . Machines | -11 -10 -10 -9 -9 -8 -8 -7 -7 -7 -7 -7 -7 -6 -6 -6 -6 -6 -5 -5 -5 -5 -5 -4 -4 -4 -4 -3 -3 -2 -2 -2 -1 ---------- Run | Yrd Mat Min Mat Min Mat Gar Fac Gar Fac Low Low Dat Pro Fac Gar Fac Gar Fac Ext Cet Arc Hub Fac Was Fac Gar Res Tes Res Qua Sec Acc Machines Disabled 134 | . . . . . . 1 . 3 3 . . . . . 6 1 4 3 . . 2 26 8 . 15 6 . 8 4 7 29 8 Max in Single Turn 19 | . . . . . . 1 . 1 3 . . . . . 2 1 1 . . . . 19 6 . 7 1 . 1 1 1 3 1 Garrison Access 5 | . . . . . . . . . . . . . . . . 1 . . . . . . 1 . . . 2 1 . . . . Garrison Relay 15 | . . . . . . 1 . 3 . . . . . . 2 . 4 . . . . . . . . 5 . . . . . . Network Hub 3 | . . . . . . . . . . . . . . . . . . . . . . 3 . . . . . . . . . . Machines Repaired . | . . . . . . . . . . . . . . . . . . . . . . . . . . . . . . . . . Machines Dismantled . | . . . . . . . . . . . . . . . . . . . . . . . . . . . . . . . . . Machines Sabotaged . | . . . . . . . . . . . . . . . . . . . . . . . . . . . . . . . . . Overloaded Fab Kills 5 | . . . . . . . . . . . . . . . . . . . . . . . . . 5 . . . . . . . Hacking | -11 -10 -10 -9 -9 -8 -8 -7 -7 -7 -7 -7 -7 -6 -6 -6 -6 -6 -5 -5 -5 -5 -5 -4 -4 -4 -4 -3 -3 -2 -2 -2 -1 --------- Run | Yrd Mat Min Mat Min Mat Gar Fac Gar Fac Low Low Dat Pro Fac Gar Fac Gar Fac Ext Cet Arc Hub Fac Was Fac Gar Res Tes Res Qua Sec Acc Machines Accessed 94 | . . . 3 1 4 . 2 1 5 . . 4 . 2 1 8 2 2 4 3 . 2 2 . 9 . 5 7 5 12 10 . Terminals 71 | . . . 2 . 3 . 1 1 5 . . . . 1 1 6 2 2 4 3 . 2 1 . 6 . 3 5 4 10 9 . Fabricators 4 | . . . . . . . . . . . . . . . . . . . . . . . . . 2 . . 1 1 . . . Repair Stations 3 | . . . 1 . . . . . . . . . . . . . . . . . . . . . . . . . . 2 . . Recycling Units . | . . . . . . . . . . . . . . . . . . . . . . . . . . . . . . . . . Scanalyzers 1 | . . . . . . . . . . . . . . . . . . . . . . . . . . . . . . . 1 . Garrison Access 10 | . . . . . 1 . 1 . . . . . . 1 . 2 . . . . . . 1 . 1 . 2 1 . . . . Total Hacks 278 | . . . 6 1 7 . 10 1 6 . . 32 . 3 1 13 2 7 8 6 . 3 5 . 31 . 15 21 12 52 36 . Successful 163 | . . . 3 1 6 . 6 1 4 . . 32 . 1 1 11 2 2 3 4 . 1 2 . 14 . 10 12 6 24 17 . Failed 115 | . . . 3 . 1 . 4 . 2 . . . . 2 . 2 . 5 5 2 . 2 3 . 17 . 5 9 6 28 19 . Catastrophic 21 | . . . . . . . 1 . . . . . . 1 . . . . . 1 . . 1 . 4 . 1 3 1 6 2 . Database Lockouts . | . . . . . . . . . . . . . . . . . . . . . . . . . . . . . . . . . Manual 82 | . . . 3 . 3 . 7 . 2 . . . . 2 . 4 . 1 7 1 . 1 5 . 15 . 8 2 4 16 1 . Terminals 207 | . . . 5 . 6 . 9 1 6 . . . . 2 1 9 2 7 8 6 . 3 2 . 24 . 12 19 11 44 30 . Fabricators 4 | . . . . . . . . . . . . . . . . . . . . . . . . . 2 . . 1 1 . . . Repair Stations 9 | . . . 1 . . . . . . . . . . . . . . . . . . . . . . . . . . 8 . . Recycling Units . | . . . . . . . . . . . . . . . . . . . . . . . . . . . . . . . . . Scanalyzers 6 | . . . . . . . . . . . . . . . . . . . . . . . . . . . . . . . 6 . Garrison Access 19 | . . . . . 1 . 1 . . . . . . 1 . 4 . . . . . . 3 . 5 . 3 1 . . . . Terminal Hacks 134 | . . . 2 1 5 . 4 1 4 . . 32 . . 1 7 2 2 2 4 . 1 . . 8 . 7 10 5 23 13 . Record 20 | . . . . . . . . . . . . 11 . . . . . . . 4 . . . . . . . 2 1 2 . . Part Schematic 15 | . . . . . . . . . . . . 13 . . . . . . . . . . . . . . 1 1 . . . . Robot Schematic 5 | . . . . . . . . . . . . 5 . . . . . . . . . . . . . . . . . . . . Robot Analysis 9 | . . . . . . . 2 . . . . . . . . . . . . . . . . . . . . . . 7 . . Prototype ID Bank 6 | . . . 1 . . . . . . . . 3 . . . . . . . . . . . . . . . . . 1 1 . Open Door 7 | . . . . 1 . . . 1 . . . . . . . . . . . . . . . . . . . . . 2 3 . Open DSF 2 | . . . . . . . . . 1 . . . . . . 1 . . . . . . . . . . . . . . . . Level Access Points 3 | . . . . . . . . . . . . . . . . . . . . . . . . . . . . 1 . 1 1 . Branch Access Points 11 | . . . 1 . 1 . . . 1 . . . . . . 1 . . 1 . . . . . 2 . 1 1 1 1 . . Emergency Access Points 2 | . . . . . . . . . . . . . . . 1 . . . . . . . . . . . . . . . 1 . Terminal Index 2 | . . . . . . . 1 . . . . . . . . . . . . . . . . . . . 1 . . . . . Garrison Index 2 | . . . . . 1 . . . . . . . . . . 1 . . . . . . . . . . . . . . . . Alert Level 1 | . . . . . . . . . 1 . . . . . . . . . . . . . . . . . . . . . . . Unreport Threat 13 | . . . . . . . . . 1 . . . . . . 1 . 2 1 . . 1 . . . . 1 . 2 2 2 . Locate Traps 4 | . . . . . . . . . . . . . . . . 1 . . . . . . . . 2 . . . 1 . . . Disarm Traps 2 | . . . . . 1 . . . . . . . . . . . . . . . . . . . . . . 1 . . . . Reprogram Traps 6 | . . . . . . . . . . . . . . . . 1 . . . . . . . . . . . . . 3 2 . Security Status 1 | . . . . . . . . . . . . . . . . . . . . . . . . . . . 1 . . . . . Transport Status 1 | . . . . . . . . . . . . . . . . 1 . . . . . . . . . . . . . . . . Garrison Status 2 | . . . . . 1 . . . . . . . . . . . . . . . . . . . . . 1 . . . . . Recall Investigation 1 | . . . . . . . . . . . . . . . . . . . . . . . . . 1 . . . . . . . Recall Extermination 3 | . . . . . . . . . . . . . . . . . . . . . . . . . . . . 1 . 1 1 . Recall Reinforcements 4 | . . . . . . . . . . . . . . . . . . . . . . . . . . . 1 2 . 1 . . Hauler Manifests 1 | . . . . . 1 . . . . . . . . . . . . . . . . . . . . . . . . . . . Registered Components 1 | . . . . . . . . . . . . . . . . . . . . . . . . . 1 . . . . . . . Registered Prototypes 2 | . . . . . . . 1 . . . . . . . . . . . . . . . . . . . . . . . 1 . Zone Layout 4 | . . . . . . . . . . . . . . . . . . . . . . . . . 2 . . . . 2 . . Garrison Registry 1 | . . . . . . . . . . . . . . . . . 1 . . . . . . . . . . . . . . . Patrol Navigation 1 | . . . . . . . . . . . . . . . . . 1 . . . . . . . . . . . . . . . Protovariant Controls 1 | . . . . . . . . . . . . . . . . . . . . . . . . . . . . 1 . . . . Activate Exoskeleton 1 | . . . . . . . . . . . . . . . . . . . . . . . . . . . . . . . 1 . Fabricator Hacks 2 | . . . . . . . . . . . . . . . . . . . . . . . . . 1 . . 1 . . . . Build 2 | . . . . . . . . . . . . . . . . . . . . . . . . . 1 . . 1 . . . . Repair Station Hacks 1 | . . . . . . . . . . . . . . . . . . . . . . . . . . . . . . 1 . . Scan Component 1 | . . . . . . . . . . . . . . . . . . . . . . . . . . . . . . 1 . . Recycling Unit Hacks . | . . . . . . . . . . . . . . . . . . . . . . . . . . . . . . . . . Scanalyzer 4 | . . . . . . . . . . . . . . . . . . . . . . . . . . . . . . . 4 . Insert Component 2 | . . . . . . . . . . . . . . . . . . . . . . . . . . . . . . . 2 . Analyze 2 | . . . . . . . . . . . . . . . . . . . . . . . . . . . . . . . 2 . Garrison Access Hacks 11 | . . . . . 1 . 1 . . . . . . 1 . 2 . . . . . . . . 2 . 3 1 . . . . Unlock Access 5 | . . . . . 1 . 1 . . . . . . 1 . 1 . . . . . . . . 1 . . . . . . . Seal Access 4 | . . . . . . . . . . . . . . . . 1 . . . . . . . . . . 2 1 . . . . Coupler Status 2 | . . . . . . . . . . . . . . . . . . . . . . . . . 1 . 1 . . . . . Unauthorized Hacks 11 | . . . 1 . . . 1 . . . . . . . . 2 . . 1 . . . 2 . 3 . . . 1 . . . Terminals 3 | . . . . . . . 1 . . . . . . . . . . . 1 . . . . . 1 . . . . . . . Botnet 3 | . . . . . . . 1 . . . . . . . . . . . 1 . . . . . 1 . . . . . . . Fabricators 2 | . . . . . . . . . . . . . . . . . . . . . . . . . 1 . . . 1 . . . Liberate 1 | . . . . . . . . . . . . . . . . . . . . . . . . . . . . . 1 . . . Overload 1 | . . . . . . . . . . . . . . . . . . . . . . . . . 1 . . . . . . . Repair Stations 1 | . . . 1 . . . . . . . . . . . . . . . . . . . . . . . . . . . . . Patch 1 | . . . 1 . . . . . . . . . . . . . . . . . . . . . . . . . . . . . Recycling Units . | . . . . . . . . . . . . . . . . . . . . . . . . . . . . . . . . . Scanalyzers . | . . . . . . . . . . . . . . . . . . . . . . . . . . . . . . . . . Garrison Access 5 | . . . . . . . . . . . . . . . . 2 . . . . . . 2 . 1 . . . . . . . Restock 4 | . . . . . . . . . . . . . . . . 2 . . . . . . 1 . 1 . . . . . . . Intercept 1 | . . . . . . . . . . . . . . . . . . . . . . . 1 . . . . . . . . . Data Cores Recovered 6 | . . . . . 1 . 1 . . . . . . . . 1 . . . . . . . . . . 1 1 . . 1 . Used 4 | . . . . . . . 1 . . . . . . . . 1 . . . . . . . . . . 1 . . . 1 . Hacking Detections 55 | . . . 2 . 3 . 1 . 2 . . . . 1 . 3 . 2 3 4 . 2 1 . 4 . 3 5 4 8 7 . Full Trace Events 2 | . . . . . . . . . . . . . . . . . . 1 . 1 . . . . . . . . . . . . Feedback Events 1 | . . . . . . . . . . . . . . . . . . . . 1 . . . . . . . . . . . . Corruption 1 | . . . . . . . . . . . . . . . . . . . . 1 . . . . . . . . . . . . Feedback Blocked . | . . . . . . . . . . . . . . . . . . . . . . . . . . . . . . . . . Robot Schematics Acquired 10 | . . . . . . . . . . . . 5 . . . . . . . . . . . . . . . 4 . 1 . . Robots Built . | . . . . . . . . . . . . . . . . . . . . . . . . . . . . . . . . . Authchips . | . . . . . . . . . . . . . . . . . . . . . . . . . . . . . . . . . Time . | . . . . . . . . . . . . . . . . . . . . . . . . . . . . . . . . . Total Robot Build Rating . | . . . . . . . . . . . . . . . . . . . . . . . . . . . . . . . . . Part Schematics Acquired 28 | . . . . . . . . . . . . 13 . . . . . . . . . . . . . . 1 11 . 1 2 . Parts Built 4 | . . . . . . . . . . . . . . . . . . . . . . . . . 2 . . 2 . . . . Authchips . | . . . . . . . . . . . . . . . . . . . . . . . . . . . . . . . . . Time 186 | . . . . . . . . . . . . . . . . . . . . . . . . . 117 . . 69 . . . . Total Part Build Rating 32 | . . . . . . . . . . . . . . . . . . . . . . . . . 14 . . 18 . . . . Parts Repaired . | . . . . . . . . . . . . . . . . . . . . . . . . . . . . . . . . . Time . | . . . . . . . . . . . . . . . . . . . . . . . . . . . . . . . . . Parts Recycled . | . . . . . . . . . . . . . . . . . . . . . . . . . . . . . . . . . Recycled Matter . | . . . . . . . . . . . . . . . . . . . . . . . . . . . . . . . . . Retrieved Matter . | . . . . . . . . . . . . . . . . . . . . . . . . . . . . . . . . . Retrieved Components . | . . . . . . . . . . . . . . . . . . . . . . . . . . . . . . . . . Parts Scanalyzed 2 | . . . . . . . . . . . . . . . . . . . . . . . . . . . . . . . 2 . Part Schematics Acquired 2 | . . . . . . . . . . . . . . . . . . . . . . . . . . . . . . . 2 . Parts Damaged . | . . . . . . . . . . . . . . . . . . . . . . . . . . . . . . . . . Bothacking | -11 -10 -10 -9 -9 -8 -8 -7 -7 -7 -7 -7 -7 -6 -6 -6 -6 -6 -5 -5 -5 -5 -5 -4 -4 -4 -4 -3 -3 -2 -2 -2 -1 ------------ Run | Yrd Mat Min Mat Min Mat Gar Fac Gar Fac Low Low Dat Pro Fac Gar Fac Gar Fac Ext Cet Arc Hub Fac Was Fac Gar Res Tes Res Qua Sec Acc Used RIF Installer 6 | . . . . . . 1 . 1 . . . . . . 2 . 1 . . . . . . . . 1 . . . . . . Hotswap 1 | . . . . . . . . . . . . . . . . . 1 . . . . . . . . . . . . . . . Command Fork 1 | . . . . . . . . . . . . . . . 1 . . . . . . . . . . . . . . . . . Structural Interface 1 | . . . . . . . . . . . . . . . . . . . . . . . . . . 1 . . . . . . Program Shield 1 | . . . . . . . . 1 . . . . . . . . . . . . . . . . . . . . . . . . Autoassimilate 1 | . . . . . . . . . . . . . . . 1 . . . . . . . . . . . . . . . . . Robots Hacked 68 | . . . . . . . . . . . . . . . 1 5 8 13 12 . 2 2 3 . 2 6 3 8 3 . . . Non-combat 7 | . . . . . . . . . . . . . . . . 1 . 1 1 . 2 1 . . . . 1 . . . . . Combat 61 | . . . . . . . . . . . . . . . 1 4 8 12 11 . . 1 3 . 2 6 2 8 3 . . . Autoassimilated 11 | . . . . . . . . . . . . . . . . . 2 3 3 . . . 1 . 1 . 1 . . . . . Robot Hacks Applied 59 | . . . . . . . . . . . . . . . 1 5 7 10 9 . 2 2 2 . 1 6 2 9 3 . . . parse_system 3 | . . . . . . . . . . . . . . . . 1 1 . . . . . . . . . . 1 . . . . block_reporting 1 | . . . . . . . . . . . . . . . . . . . . . . 1 . . . . . . . . . . overload_power 1 | . . . . . . . . . . . . . . . . . . . . . . . . . . 1 . . . . . . wipe_record 1 | . . . . . . . . . . . . . . . . . . . 1 . . . . . . . . . . . . . disable_weapons 2 | . . . . . . . . . . . . . . . . . . . 1 . . 1 . . . . . . . . . . streamctrl_high 7 | . . . . . . . . . . . . . . . . . 4 1 . . . . . . 1 1 . . . . . . formatsys_low 6 | . . . . . . . . . . . . . . . . . . 1 1 . 2 . . . . . 1 1 . . . . formatsys_high 38 | . . . . . . . . . . . . . . . 1 4 2 8 6 . . . 2 . . 4 1 7 3 . . . Relay Couplers Released 82 | . . . . . . 3 . 12 . . . . . . 7 8 19 . . . . . 7 . 3 20 . . 3 . . . Machine Destruction 67 | . . . . . . 3 . 12 . . . . . . 7 2 19 . . . . . 4 . . 20 . . . . . . Programmers 15 | . . . . . . . . . . . . . . . . 6 . . . . . . 3 . 3 . . . 3 . . . Attached 24 | . . . . . . . . . . . . . . . 1 2 4 2 2 . . . 1 . 2 3 4 2 1 . . . Fabnet Peak Effective % . | . . . . . . . . . . . . . . . . . . . . . . . . . . . . . . . . . Robots Rewired 20 | . . . . . . 6 . . . . . . . . 2 . 4 . . . . . . . . 4 . 1 . 3 . . Allies Hacked 1 | . . . . . . . . . . . . . . . . . . 1 . . . . . . . . . . . . . . Hacks Repelled . | . . . . . . . . . . . . . . . . . . . . . . . . . . . . . . . . . Allies | -11 -10 -10 -9 -9 -8 -8 -7 -7 -7 -7 -7 -7 -6 -6 -6 -6 -6 -5 -5 -5 -5 -5 -4 -4 -4 -4 -3 -3 -2 -2 -2 -1 -------- Run | Yrd Mat Min Mat Min Mat Gar Fac Gar Fac Low Low Dat Pro Fac Gar Fac Gar Fac Ext Cet Arc Hub Fac Was Fac Gar Res Tes Res Qua Sec Acc Total Allies 131 | . . 1 . . . 6 . 2 . . . . . . 3 4 12 13 19 5 3 . 3 . 2 9 3 10 7 3 1 25 Largest Group 23 | . . 1 1 . . 6 6 8 6 . . . . . 3 5 6 8 22 22 23 23 2 1 1 7 6 8 4 1 1 11 Highest-Rated Group 1204 | . . 31 31 . . 202 202 258 186 . . . . . 265 267 278 347 908 1162 1147 1147 112 56 30 494 363 466 300 62 1204 1204 Highest-Rated Ally 1204 | . . 31 31 . . 40 40 40 40 . . . . . 148 148 85 85 159 152 130 96 56 56 30 148 116 119 89 62 1204 1204 Total Orders 8 | . . . . . . . . . . . . . . . . . . . . . . . . . . . . . . 2 6 . STAY 1 | . . . . . . . . . . . . . . . . . . . . . . . . . . . . . . 1 . . DROP 1 | . . . . . . . . . . . . . . . . . . . . . . . . . . . . . . 1 . . EXPLORE 6 | . . . . . . . . . . . . . . . . . . . . . . . . . . . . . . . 6 . Ally Attacks 1139 | . . . 7 . . . 4 51 39 . . . . . 54 65 50 57 101 48 28 125 23 . 5 58 29 62 67 3 126 137 Total Damage 46118 | . . . 65 . . . 69 1032 922 . . . . . 1932 1774 1821 1375 2730 1286 492 3693 885 . 82 1784 915 3672 2133 67 11029 8360 Kills 249 | . . . . . . . 1 16 10 . . . . . 13 12 11 11 24 6 4 25 5 . . 6 8 22 16 . 34 25 Allies Corrupted 16 | . . . . . . . . . 2 . . . . . . . . 1 . 1 . 6 . . . . . 4 1 1 . . Allies Melted 1 | . . . . . . . . . . . . . . . . . . 1 . . . . . . . . . . . . . . Intel | -11 -10 -10 -9 -9 -8 -8 -7 -7 -7 -7 -7 -7 -6 -6 -6 -6 -6 -5 -5 -5 -5 -5 -4 -4 -4 -4 -3 -3 -2 -2 -2 -1 ------- Run | Yrd Mat Min Mat Min Mat Gar Fac Gar Fac Low Low Dat Pro Fac Gar Fac Gar Fac Ext Cet Arc Hub Fac Was Fac Gar Res Tes Res Qua Sec Acc Active Infowar (turns) 26765 | . 70 136 341 249 609 568 174 409 866 327 312 127 330 148 746 1188 927 725 1981 538 136 724 461 73 1903 1160 1296 2601 1546 2643 3451 . Optics 12099 | . . . . . . 259 174 409 866 327 312 127 330 148 746 1188 927 725 1981 538 136 724 461 73 1648 . . . . . . . IFF 577 | . . . . . . . . . . . . . . . . . . . . . . . . . . . . . . . 577 . Terrain 2448 | . . . . . . . . . 781 327 312 127 330 148 421 . . . . . . . . . . . . . . . 2 . Seismic 2635 | . 70 136 341 249 609 568 174 409 79 . . . . . . . . . . . . . . . . . . . . . . . Jamming 13725 | . . . . . . . . . . . . . . . . . . . . . . . . . 1065 1160 1296 2601 1546 2643 3414 . ECM 34 | . . . . . . . . . . . . . . . . . . . . . . . 34 . . . . . . . . . Robot Analysis Total 9 | . . . . . . . 2 . . . . . . . . . . . . . . . . . . . . . . 7 . . Derelict Logs Recovered 3 | . . 1 . . . . . . . 1 1 . . . . . . . . . . . . . . . . . . . . . Drone Launches 6 | . . . . . . . . . . . . . . . . . . . . . . . . . . . . . . . 6 . Drone Recoveries 3 | . . . . . . . . . . . . . . . . . . . . . . . . . . . . . . . 3 . Exploration | -11 -10 -10 -9 -9 -8 -8 -7 -7 -7 -7 -7 -7 -6 -6 -6 -6 -6 -5 -5 -5 -5 -5 -4 -4 -4 -4 -3 -3 -2 -2 -2 -1 ------------- Run | Yrd Mat Min Mat Min Mat Gar Fac Gar Fac Low Low Dat Pro Fac Gar Fac Gar Fac Ext Cet Arc Hub Fac Was Fac Gar Res Tes Res Qua Sec Acc Turns Passed 30776 | 65 180 136 341 249 609 568 174 409 866 327 312 127 330 148 746 1188 927 725 1981 538 136 724 461 101 2287 1160 1296 2601 1589 3910 4361 1204 Spaces Moved 17238 | 46 130 104 163 192 403 378 139 280 610 225 170 99 163 104 462 843 533 478 1358 197 62 370 246 72 1623 789 795 1399 725 1677 1766 637 Core 308 | 5 . . . . . . . . . . . . . . . . . . . . . . . 50 37 . . . . . . 216 Treads 6469 | . . . . . . . . . . . . . . . . . . . . . . . . . . . 481 1399 725 1677 1766 421 Legs 9176 | 41 130 104 163 192 403 378 139 280 610 225 170 99 163 104 462 843 533 478 1358 197 62 370 246 22 301 789 314 . . . . . Wheels 863 | . . . . . . . . . . . . . . . . . . . . . . . . . 863 . . . . . . . Hover 422 | . . . . . . . . . . . . . . . . . . . . . . . . . 422 . . . . . . . Flight . | . . . . . . . . . . . . . . . . . . . . . . . . . . . . . . . . . Fastest Speed 48 | 50 120 120 120 120 112 115 115 115 110 125 125 125 125 125 122 120 116 116 120 120 120 120 112 50 48 120 114 152 155 155 155 50 Average Speed 134 | 113 120 120 120 120 115 117 115 115 115 125 125 125 125 125 125 121 118 119 120 153 155 164 137 69 100 120 142 158 163 160 169 127 Slowest Speed 260 | 120 120 120 120 120 120 122 115 115 125 125 125 125 125 125 200 122 186 193 120 190 190 195 192 114 130 120 161 161 238 246 246 260 Overloaded Moves . | . . . . . . . . . . . . . . . . . . . . . . . . . . . . . . . . . Propulsion Burnouts . | . . . . . . . . . . . . . . . . . . . . . . . . . . . . . . . . . Robots Hopped . | . . . . . . . . . . . . . . . . . . . . . . . . . . . . . . . . . Potential Cave-ins 21 | . . . . . . . . . . . . . . . . . . . . . . . . . 9 . . . . . 2 10 Cave-ins Triggered 1 | . . . . . . . . . . . . . . . . . . . . . . . . . . . . . . . 1 . Teleports 96 | . . . . . . . . . . . . . . . . . . . . . . . . . . . . . . . 61 35 Exploration Rate (%) 43 | 3 26 25 23 38 36 40 3 54 20 55 38 74 32 4 50 24 51 12 93 72 80 43 13 72 44 72 21 95 23 91 85 28 Regions Visited 32 Branch Regions 13 Pre-discovered Areas 2 | . . . . 1 . . . . . . . 1 . . . . . . . . . . . . . . . . . . . . Known Exits Taken 25 | 1 1 1 1 1 1 . 1 . 1 1 1 1 1 1 . 1 . 1 1 1 1 1 . . 1 . 1 1 1 1 1 . Unknown Exits Taken . | . . . . . . . . . . . . . . . . . . . . . . . . . . . . . . . . . Scrap Searched 4 | . . . . 1 . . . . . . 1 . 2 . . . . . . . . . . . . . . . . . . . Spaces Dug 496 | . . . . . . . . . . 2 . . 2 . . . 2 1 . 10 4 329 . . 11 6 3 6 . . 15 105 Terrain Destroyed 1524 | . . . . . 3 . . . 9 5 2 . 3 . 85 6 5 2 . 11 4 495 60 3 164 15 5 21 45 61 68 452 Melee . | . . . . . . . . . . . . . . . . . . . . . . . . . . . . . . . . . Projectile 256 | . . . . . 3 . . . 3 5 2 . 3 . . 6 5 2 . 11 4 29 4 3 43 15 5 21 27 8 33 24 AOE 1268 | . . . . . . . . . 6 . . . . . 85 . . . . . . 466 56 . 121 . . . 18 53 35 428 Terrain Rammed . | . . . . . . . . . . . . . . . . . . . . . . . . . . . . . . . . . Walls Destroyed . | . . . . . . . . . . . . . . . . . . . . . . . . . . . . . . . . . Machines Disabled . | . . . . . . . . . . . . . . . . . . . . . . . . . . . . . . . . . Actions | -11 -10 -10 -9 -9 -8 -8 -7 -7 -7 -7 -7 -7 -6 -6 -6 -6 -6 -5 -5 -5 -5 -5 -4 -4 -4 -4 -3 -3 -2 -2 -2 -1 --------- Run | Yrd Mat Min Mat Min Mat Gar Fac Gar Fac Low Low Dat Pro Fac Gar Fac Gar Fac Ext Cet Arc Hub Fac Was Fac Gar Res Tes Res Qua Sec Acc Total 22517 | 56 141 114 223 202 483 466 149 327 710 242 258 102 270 115 581 945 755 614 1700 403 98 420 318 90 2009 924 915 1683 1008 2646 2725 825 Wait 2648 | . 2 6 4 2 11 25 2 12 7 . 80 . 91 . 45 21 89 101 309 170 24 3 4 3 101 50 39 75 151 671 532 18 Move 17202 | 45 129 103 162 191 402 376 138 278 609 224 169 98 162 103 460 842 531 477 1357 196 61 369 246 71 1622 787 794 1398 724 1676 1765 637 Hop . | . . . . . . . . . . . . . . . . . . . . . . . . . . . . . . . . . Pick Up 172 | 1 . . 2 1 3 . 2 2 4 . 1 . . . 6 11 12 1 1 2 . 1 7 . 27 6 5 6 9 19 28 15 Fast Attach 282 | 8 3 . 5 2 7 3 1 1 13 . . 2 1 3 6 2 8 5 3 1 . 4 10 . 42 3 14 35 15 37 45 3 Attach 145 | . . . 1 . 1 . . . 2 . 1 . . 2 2 3 4 2 4 3 2 1 9 1 11 2 3 10 6 11 37 27 Detach 81 | . . . . . . . . . 2 . . . 1 . 1 . . . 3 1 2 . 1 . 1 . . 13 7 11 35 3 Swap 166 | . . . 2 . 9 4 . . 6 . . . 2 2 9 9 13 3 1 5 1 2 5 1 12 5 6 11 9 13 31 5 Drop 352 | 2 1 . 5 2 15 4 2 . 19 . . 2 1 2 8 15 17 3 3 3 . 4 10 . 41 8 24 37 13 52 51 8 Fire 1239 | . 6 . 42 4 35 30 4 33 44 18 7 . 12 3 29 42 52 16 12 22 6 35 26 14 99 47 29 75 67 137 187 106 Melee 41 | . . . . . . . . . . . . . . . . . . . . . . . . . 41 . . . . . . . Ram 5 | . . . . . . . . . . . . . . . . . . . . . . . . . 2 . . . . . . 3 Kick 17 | . . 5 . . . . . . 4 . . . . . . . . 2 4 . . 1 . . 1 . . . . . . . Crush 13 | . . . . . . . . . . . . . . . . . . . . . . . . . . . . 6 4 3 . . Escape Stasis 29 | . . . . . . 2 . 1 . . . . . . 5 . 5 . . . . . . . 8 2 . . . . 6 . Rewire 125 | . . . . . . 22 . . . . . . . . 10 . 24 4 3 . 2 . . . 1 14 1 17 3 16 8 . Trap . | . . . . . . . . . . . . . . . . . . . . . . . . . . . . . . . . . Miscellaneous . | . . . . . . . . . . . . . . . . . . . . . . . . . . . . . . . . . Route ------- -11/Scrapyard -10/Materials -10/Mines -9/Materials (discovered 3 exits: *Mat x2 / *Min) -9/Mines -8/Materials (discovered 3 exits: *Fac / *Sto / Gar) -8/Garrison -7/Factory -7/Garrison -7/Factory (discovered 2 exits: *Low x2) -7/Lower Caves -7/Lower Caves -7/Data Miner -6/Proximity Caves -6/Factory -6/Garrison -6/Factory (discovered 3 exits: Low x2 / Gar) -6/Garrison (discovered 3 exits: *Fac x3) -5/Factory (discovered 2 exits: *Upp / *Ext) -5/Extension (discovered 3 exits: *Fac x2 / *Cet) -5/Cetus (discovered 2 exits: *Fac / *Arc) -5/Archives -5/Hub_04(d) (discovered 3 exits: *Fac x3) -4/Factory -4/Waste -4/Factory (discovered 4 exits: *Upp x2 / Arm / Gar) -4/Garrison (discovered 2 exits: *Res x2) -3/Research (discovered 2 exits: *Tes x2) -3/Testing -2/Research (discovered 2 exits: *Qua x2) -2/Quarantine (discovered 2 exits: *Sec / *Frg) -2/Section 7 -1/Access History --------- Turn | Location | Event 7 | -11/Scrapyard | Identified exit to Materials 7 | -11/Scrapyard | Discovered exit to Materials (range 15) 66 | -11/Scrapyard | Entered Materials 66 | -10/Materials | Evolved 1 slot: Propulsion x1 211 | -10/Materials | Identified exit to Mines 211 | -10/Materials | Discovered exit to Mines (range 14) 246 | -10/Materials | Entered Mines 311 | -10/Mines | Build established: Hacker-Mutant 346 | -10/Mines | Learned 2 Materials zone layouts 352 | -10/Mines | Received a Mining Laser from a helpful Derelict 359 | -10/Mines | Identified exit to Materials 359 | -10/Mines | Discovered exit to Materials (range 16) 382 | -10/Mines | Entered Materials 382 | -9/Materials | Accompanied by 1 ally 382 | -9/Materials | Evolved 2 slots: Propulsion x1, Utility x1 383 | -9/Materials | Identified exit to Materials 499 | -9/Materials | Destroyed 8 combat bots 592 | -9/Materials | Discovered exit to Materials (range 16) 637 | -9/Materials | Identified exit to Mines 723 | -9/Materials | Entered Mines 783 | -9/Mines | Met a Derelict shopkeep closing up shop 822 | -9/Mines | Found a Scrap Suit stashed away for nefarious purposes 870 | -9/Mines | Found a hidden stash of uninstalled traps 960 | -9/Mines | Discovered exit to Materials (range 6) 961 | -9/Mines | Learned location of Storage (-8) 972 | -9/Mines | Entered Materials 972 | -8/Materials | Evolved 2 slots: Utility x2 1007 | -8/Materials | Identified exit to Storage 1400 | -8/Materials | Identified exit to Factory 1400 | -8/Materials | Discovered exit to Factory (range 5) 1580 | -8/Materials | Identified exit to Garrison 1581 | -8/Materials | Entered Garrison 1667 | -8/Garrison | Triggered checkpoint 1684 | -8/Garrison | Build established: Scavenger-Mutant 1758 | -8/Garrison | Installed Relay Interface Framework 1769 | -8/Garrison | Garrison Relay disabled 2045 | -8/Garrison | Discovered exit to Factory (range 12) 2149 | -8/Garrison | Entered Factory 2149 | -7/Factory | Accompanied by 6 allies 2149 | -7/Factory | Evolved 2 slots: Utility x2 2310 | -7/Factory | Identified exit to Garrison 2323 | -7/Factory | Entered Garrison 2323 | -7/Garrison | Accompanied by 6 allies 2365 | -7/Garrison | Expanded RIF knowledge: Program Shield 2414 | -7/Garrison | Garrison Relay disabled 2416 | -7/Garrison | Garrison Relay disabled 2491 | -7/Garrison | Rescued a captive Derelict 2492 | -7/Garrison | Rescued a captive Derelict 2549 | -7/Garrison | Triggered checkpoint 2585 | -7/Garrison | Triggered checkpoint 2641 | -7/Garrison | Triggered checkpoint 2671 | -7/Garrison | Garrison Relay disabled 2697 | -7/Garrison | Identified exit to Factory 2697 | -7/Garrison | Discovered exit to Factory (range 12) 2732 | -7/Garrison | Entered Factory 2732 | -7/Factory | Accompanied by 6 allies 3103 | -7/Factory | Build established: Scavenger-Skirmisher 3283 | -7/Factory | Identified exit to Lower Caves 3361 | -7/Factory | Cargo convoy interrupted 3432 | -7/Factory | Found Prototype Processor 3432 | -7/Factory | Identified Exp. Signal Interpreter 3598 | -7/Factory | Entered Lower Caves 3874 | -7/Lower Caves | Learned Factory emergency access door positions 3895 | -7/Lower Caves | Identified exit to Lower Caves 3895 | -7/Lower Caves | Discovered exit to Lower Caves (range 10) 3925 | -7/Lower Caves | Entered another Lower Caves area 3968 | -7/Lower Caves | Encountered a Warlord checkpoint 4203 | -7/Lower Caves | Identified exit to Data Miner 4237 | -7/Lower Caves | Entered Data Miner 4238 | -7/Data Miner | Identified exit to Proximity Caves 4238 | -7/Data Miner | Discovered exit to Proximity Caves (range 6) 4257 | -7/Data Miner | Met Data Miner 4288 | -7/Data Miner | Learned location of Section 7 (-2) 4288 | -7/Data Miner | Acquired the access code to Warlord's prototype stash 4316 | -7/Data Miner | Received God Mode back door access code from Data Miner 4364 | -7/Data Miner | Entered Proximity Caves 4674 | -6/Proximity Caves | Identified exit to Factory 4674 | -6/Proximity Caves | Discovered exit to Factory (range 5) 4687 | -6/Proximity Caves | Build established: Hacker-Skirmisher 4694 | -6/Proximity Caves | Entered Factory 4694 | -6/Factory | Evolved 2 slots: Power x1, Weapon x1 4837 | -6/Factory | Identified exit to Garrison 4842 | -6/Factory | Entered Garrison 4842 | -6/Garrison | Spotted B-86 Titan 4865 | -6/Garrison | Garrison Relay disabled 4870 | -6/Garrison | Triggered checkpoint 4899 | -6/Garrison | Spotted B-75 Beast 4906 | -6/Garrison | Destroyed B-75 Beast 5001 | -6/Garrison | Destroyed B-86 Titan 5035 | -6/Garrison | Rewired B-90 Cyclops 5049 | -6/Garrison | Rewired B-75 Beast 5244 | -6/Garrison | Triggered checkpoint 5256 | -6/Garrison | Lost 5 parts (1p2n1u1w) 5320 | -6/Garrison | Triggered checkpoint 5377 | -6/Garrison | Expanded RIF knowledge: Command Fork 5392 | -6/Garrison | Garrison Relay disabled 5464 | -6/Garrison | Identified exit to Factory 5464 | -6/Garrison | Discovered exit to Factory (range 17) 5496 | -6/Garrison | Expanded RIF knowledge: Autoassimilate 5552 | -6/Garrison | Build established: Scavenger-Gunner 5588 | -6/Garrison | Entered Factory 5588 | -6/Factory | Accompanied by 2 allies 5865 | -6/Factory | Identified exit to Lower Caves 5868 | -6/Factory | Spotted B-75 Beast 5885 | -6/Factory | Allies destroyed B-75 Beast 6209 | -6/Factory | Build established: Bothacker-Mutant 6402 | -6/Factory | Identified exit to Garrison 6497 | -6/Factory | Cargo convoy interrupted 6538 | -6/Factory | Garrison activated, responded to threat 6776 | -6/Factory | Entered Garrison 6776 | -6/Garrison | Accompanied by 3 allies 6777 | -6/Garrison | Build established: Bothacker-Gunner 6820 | -6/Garrison | Triggered checkpoint 6871 | -6/Garrison | Garrison Relay disabled 6901 | -6/Garrison | Identified exit to Factory 6901 | -6/Garrison | Discovered exit to Factory (range 43) 6901 | -6/Garrison | Discovered exit to Factory (range 66) 6901 | -6/Garrison | Discovered exit to Factory (range 83) 6955 | -6/Garrison | Garrison Relay disabled 7002 | -6/Garrison | Triggered checkpoint 7005 | -6/Garrison | Triggered checkpoint 7032 | -6/Garrison | Triggered checkpoint 7079 | -6/Garrison | Spotted B-75 Beast 7093 | -6/Garrison | Assimilated Beast 5b with formatsys_high 7123 | -6/Garrison | Lost 4 allies 7293 | -6/Garrison | Build established: Botlord-Gunner 7324 | -6/Garrison | Expanded RIF knowledge: Hotswap 7420 | -6/Garrison | Garrison Relay disabled 7643 | -6/Garrison | Garrison Relay disabled 7666 | -6/Garrison | Triggered checkpoint 7703 | -6/Garrison | Entered Factory 7703 | -5/Factory | Accompanied by 6 allies 7703 | -5/Factory | Evolved 2 slots: Utility x2 7816 | -5/Factory | Lost 4 allies 8138 | -5/Factory | Identified exit to Upper Caves 8138 | -5/Factory | Discovered exit to Upper Caves (range 11) 8159 | -5/Factory | Incoming investigation squad redirected 8293 | -5/Factory | Garrison activated, responded to threat 8306 | -5/Factory | Identified exit to Extension 8306 | -5/Factory | Discovered exit to Extension (range 14) 8428 | -5/Factory | Entered Extension 8428 | -5/Extension | Accompanied by 8 allies 8462 | -5/Extension | Rescued a captive Derelict 8463 | -5/Extension | Rescued a captive Derelict 8582 | -5/Extension | Build established: Botlord-Mutant 8679 | -5/Extension | Rescued a captive Derelict 8680 | -5/Extension | Rescued a captive Derelict 8698 | -5/Extension | Rescued A7 8743 | -5/Extension | Rescued a captive Derelict 8841 | -5/Extension | Rescued a captive Derelict 8847 | -5/Extension | Rescued a captive Derelict 9238 | -5/Extension | Spotted B-75 Beast 9239 | -5/Extension | Autoassimilated Beast 6a with RIF 9245 | -5/Extension | Spotted B-75 Beast 9256 | -5/Extension | Assimilated Beast 6b with formatsys_high 9281 | -5/Extension | Identified exit to Factory 9281 | -5/Extension | Discovered exit to Factory (range 3) 9331 | -5/Extension | Rescued a captive Derelict 9332 | -5/Extension | Rescued a captive Derelict 9524 | -5/Extension | Identified exit to Cetus 9655 | -5/Extension | Discovered exit to Factory (range 10) 10409 | -5/Extension | Entered Cetus 10409 | -5/Cetus | Accompanied by 20 allies (A7) 10414 | -5/Cetus | Acquired a Cetus Manufacturing Module code from A7 10423 | -5/Cetus | Spotted Cetus Guard 10425 | -5/Cetus | Spotted Cetus Guard 10426 | -5/Cetus | Spotted Cetus Guard 10429 | -5/Cetus | Spotted Cetus Guard 10437 | -5/Cetus | Destroyed Cetus Guard 10437 | -5/Cetus | Allies destroyed Cetus Guard 10439 | -5/Cetus | Destroyed Cetus Guard 10440 | -5/Cetus | Allies destroyed Cetus Guard 10547 | -5/Cetus | Started Cetus Manufacturing Module 10572 | -5/Cetus | Manufactured an Enhanced Grunt 10578 | -5/Cetus | Identified exit to Archives 10578 | -5/Cetus | Discovered exit to Archives (range 19) 10597 | -5/Cetus | Manufactured an Enhanced Grunt 10622 | -5/Cetus | Manufactured an Enhanced Grunt 10647 | -5/Cetus | Manufactured an Enhanced Grunt 10660 | -5/Cetus | Spotted Cetus Guard 10660 | -5/Cetus | Spotted Cetus Guard 10667 | -5/Cetus | Allies destroyed Cetus Guard 10667 | -5/Cetus | Spotted Cetus Guard 10668 | -5/Cetus | Spotted Cetus Guard 10670 | -5/Cetus | Destroyed Cetus Guard 10672 | -5/Cetus | Manufactured an Enhanced Grunt 10678 | -5/Cetus | Discovered exit to Factory (range 20) 10683 | -5/Cetus | Allies destroyed Cetus Guard 10687 | -5/Cetus | Destroyed Cetus Guard 10706 | -5/Cetus | Met Revision 17 10947 | -5/Cetus | Entered Archives 10947 | -5/Archives | Accompanied by 21 allies (A7) 10990 | -5/Archives | Identified exit to Hub_04(d) 10990 | -5/Archives | Discovered exit to Hub_04(d) (range 17) 11016 | -5/Archives | Build established: Commander-Mutant 11083 | -5/Archives | Entered Hub_04(d) 11083 | -5/Hub_04(d) | Accompanied by 23 allies 11267 | -5/Hub_04(d) | Discovered exit to Factory (range 2) 11372 | -5/Hub_04(d) | Discovered exit to Factory (range 15) 11504 | -5/Hub_04(d) | Spotted B-75 Beast 11508 | -5/Hub_04(d) | Discovered exit to Factory (range 7) 11518 | -5/Hub_04(d) | Allies destroyed B-75 Beast 11770 | -5/Hub_04(d) | Network Hub disabled 11770 | -5/Hub_04(d) | Network Hub disabled 11778 | -5/Hub_04(d) | Spotted Lightning 11779 | -5/Hub_04(d) | Spotted Lightning 11782 | -5/Hub_04(d) | Spotted Lightning 11793 | -5/Hub_04(d) | Spotted Lightning 11796 | -5/Hub_04(d) | Murdered 6 allies 11796 | -5/Hub_04(d) | Spotted Lightning 11798 | -5/Hub_04(d) | Network Hub disabled 11798 | -5/Hub_04(d) | Spotted Lightning 11806 | -5/Hub_04(d) | System corruption reached 10% 11807 | -5/Hub_04(d) | Entered Factory 11807 | -4/Factory | Evolved 2 slots: Propulsion x1, Utility x1 11818 | -4/Factory | Lost 9 allies 11837 | -4/Factory | Lost 5 parts (1p2n1u1w) 11929 | -4/Factory | Garrison activated, responded to threat 12268 | -4/Factory | Sucked down chute 12268 | -4/Factory | Entered Waste 12283 | -4/Waste | EMP discharged 12286 | -4/Waste | Spotted C-40 Crusher 12306 | -4/Waste | Destroyed C-40 Crusher 12309 | -4/Waste | Build established: Botlord-Gunner 12313 | -4/Waste | Spotted C-40 Crusher 12320 | -4/Waste | Spotted C-40 Crusher 12329 | -4/Waste | Spotted C-40 Crusher 12337 | -4/Waste | Crushed by Compactor (1 part destroyed, 1 dropped) 12340 | -4/Waste | Crushed by Compactor (1 part destroyed, 1 dropped) 12341 | -4/Waste | Crushed by Compactor (1 part destroyed, 2 dropped) 12341 | -4/Waste | Released all parts (14) 12348 | -4/Waste | Spotted C-40 Crusher 12353 | -4/Waste | 1 allies followed down the chute 12354 | -4/Waste | Spotted C-40 Crusher 12356 | -4/Waste | Identified exit to Factory 12356 | -4/Waste | Discovered exit to Factory (range 16) 12369 | -4/Waste | Entered Factory 12372 | -4/Factory | Lost 3 parts (1n1u1w) 12376 | -4/Factory | Identified exit to Upper Caves 12376 | -4/Factory | Identified exit to Armory 12629 | -4/Factory | Build established: Hacker-Mutant 12745 | -4/Factory | Fabricated Lrn. Sensor Array? 13111 | -4/Factory | Build established: Hacker-Tank 13501 | -4/Factory | Build established: Bothacker-Mutant 13699 | -4/Factory | Lost 3 parts (1p1n1u) 13999 | -4/Factory | System corruption reached 10% 14097 | -4/Factory | Build established: Bothacker-Tank 14475 | -4/Factory | Identified exit to Garrison 14656 | -4/Factory | Entered Garrison 14708 | -4/Garrison | Triggered checkpoint 14755 | -4/Garrison | Garrison Relay disabled 14764 | -4/Garrison | Triggered checkpoint 14853 | -4/Garrison | Spotted B-86 Titan 14930 | -4/Garrison | Build established: Botlord-Tank 14986 | -4/Garrison | Destroyed B-86 Titan 15007 | -4/Garrison | Garrison Relay disabled 15190 | -4/Garrison | Triggered checkpoint 15228 | -4/Garrison | Triggered checkpoint 15314 | -4/Garrison | Triggered checkpoint 15420 | -4/Garrison | Garrison Relay disabled 15429 | -4/Garrison | Garrison Relay disabled 15476 | -4/Garrison | Garrison Relay disabled 15526 | -4/Garrison | Identified exit to Research 15526 | -4/Garrison | Discovered exit to Research (range 8) 15545 | -4/Garrison | Spotted B-75 Beast 15556 | -4/Garrison | Rewired B-86 Titan 15563 | -4/Garrison | Allies destroyed B-75 Beast 15584 | -4/Garrison | Rewired B-90 Cyclops 15696 | -4/Garrison | Triggered checkpoint 15713 | -4/Garrison | Expanded RIF knowledge: Structural Interface 15731 | -4/Garrison | Discovered exit to Research (range 11) 15816 | -4/Garrison | Entered Research 15816 | -3/Research | Accompanied by 6 allies 15816 | -3/Research | Evolved 2 slots: Utility x2 15939 | -3/Research | Identified exit to Testing 16016 | -3/Research | Revision forces began assault on 0b10 16094 | -3/Research | Lost 4 allies 16103 | -3/Research | Met up with Revision 17++ 16516 | -3/Research | Research terminal network offline 17112 | -3/Research | Entered Testing 17112 | -3/Testing | Accompanied by 3 allies 17193 | -3/Testing | Fabricated Lgt. Quantum Reactor? 17348 | -3/Testing | Found Prototype Energy Cannon 17348 | -3/Testing | Identified Null Cannon 17376 | -3/Testing | Protovariant out of control (PP-YMQRX258CK) 17376 | -3/Testing | Unleashed a protovariant (PP-YMQRX258CK) 17579 | -3/Testing | Spotted PP-YMQRX258CK 17581 | -3/Testing | Destroyed PP-YMQRX258CK 17621 | -3/Testing | Found Prototype Reactor 17621 | -3/Testing | Identified Zero-point Reactor 17709 | -3/Testing | Identified exit to Research 17849 | -3/Testing | Rewired PD-LRYDF258OO 17954 | -3/Testing | Lost 5 allies 18116 | -3/Testing | Found Prototype Device 18116 | -3/Testing | Identified Exp. Hardlight Generator 18225 | -3/Testing | Found Prototype Energy Cannon 18225 | -3/Testing | Identified Potential Cannon 18228 | -3/Testing | Found Prototype Energy Cannon 18247 | -3/Testing | Identified Imp. Potential Cannon 18354 | -3/Testing | Lost 3 allies 18386 | -3/Testing | Found Prototype Hackware 18386 | -3/Testing | Identified Exp. Hacking Suite 18507 | -3/Testing | Found Prototype Launcher 18508 | -3/Testing | Identified Tesla Bomb Launcher 18917 | -3/Testing | Spotted Alpha 7 18954 | -3/Testing | Destroyed Alpha 7 19008 | -3/Testing | Found Prototype Processor 19008 | -3/Testing | Identified Exp. Melee Analysis Suite 19083 | -3/Testing | Scanned by Researcher 19289 | -3/Testing | Build established: Bothacker-Tank 19319 | -3/Testing | Spotted Striker 19358 | -3/Testing | P-80 Master assimilated allied Rainmaker 8a 19571 | -3/Testing | Found Prototype Energy Gun 19571 | -3/Testing | Identified Hyp. EM Gauss Rifle 19713 | -3/Testing | Entered Research 19713 | -2/Research | Evolved 2 slots: Weapon x2 19835 | -2/Research | Allied Derelicts emerged from ambush trap array 20063 | -2/Research | Lost 5 allies 20138 | -2/Research | Found Prototype Device 20138 | -2/Research | Identified Exp. Focal Shield 20378 | -2/Research | Build established: Hacker-Tank 20442 | -2/Research | Identified exit to Quarantine 21212 | -2/Research | Spotted B-90 Cyclops 21217 | -2/Research | Destroyed B-90 Cyclops 21302 | -2/Research | Entered Quarantine 21473 | -2/Quarantine | Identified exit to Access 21698 | -2/Quarantine | Spotted Alpha 7 21772 | -2/Quarantine | Destroyed Alpha 7 21802 | -2/Quarantine | Found Alien Launcher 21802 | -2/Quarantine | Identified Sigix Terminator 22479 | -2/Quarantine | Met incapacitated Sigix Warrior 22479 | -2/Quarantine | Lockdown squad dispatched 22567 | -2/Quarantine | Spotted Lightning 22567 | -2/Quarantine | Spotted Lightning 22567 | -2/Quarantine | Spotted Lightning 22596 | -2/Quarantine | Destroyed Lightning 22599 | -2/Quarantine | Destroyed Lightning 22609 | -2/Quarantine | Destroyed Lightning 22683 | -2/Quarantine | Found Prototype Device 22683 | -2/Quarantine | Identified Exp. EM Shield 22701 | -2/Quarantine | Found Prototype Energy Cannon 22701 | -2/Quarantine | Identified EMDS 22729 | -2/Quarantine | Acquired the access code to the Sigix quarantine chamber 22776 | -2/Quarantine | Found Alien Artifact 22891 | -2/Quarantine | Destroyed 11 combat bots 23157 | -2/Quarantine | Build established: Scavenger-Tank 23361 | -2/Quarantine | Found Alien Artifact 23361 | -2/Quarantine | Identified Core Reset Matrix 23361 | -2/Quarantine | Identified Phase Redirector 23361 | -2/Quarantine | Used Core Reset Matrix 23365 | -2/Quarantine | Sensed 2 artifacts in vicinity 23527 | -2/Quarantine | Found Subatomic Replicator 23651 | -2/Quarantine | Found Prototype Device 23651 | -2/Quarantine | Identified Thermal Barrier 24089 | -2/Quarantine | Found Sigix Containment Pod 24958 | -2/Quarantine | Spotted Fortress 25077 | -2/Quarantine | Destroyed Fortress 25204 | -2/Quarantine | Identified exit to Section 7 25204 | -2/Quarantine | Discovered exit to Section 7 (range 6) 25204 | -2/Quarantine | Identified exit to Protoforge 25204 | -2/Quarantine | Discovered exit to Protoforge (range 7) 25212 | -2/Quarantine | Entered Section 7 25213 | -2/Section 7 | Detected hypermatrix surge 25213 | -2/Section 7 | Sensed 23 artifacts in vicinity 25280 | -2/Section 7 | Build established: Hacker-Tank 25396 | -2/Section 7 | Spotted S7 Guard 25449 | -2/Section 7 | Destroyed S7 Guard 25461 | -2/Section 7 | Found Core Physics Calibrator 25540 | -2/Section 7 | Found Integrity Redistributor 25540 | -2/Section 7 | Used Integrity Redistributor, redistributed integrity from core (-279) 25562 | -2/Section 7 | Spotted S7 Guard 25715 | -2/Section 7 | Destroyed S7 Guard 25822 | -2/Section 7 | Found Core Regenerator 25822 | -2/Section 7 | Used Core Regenerator, restored core integrity (+362) 26265 | -2/Section 7 | Spotted S7 Guard 26275 | -2/Section 7 | Destroyed S7 Guard 26288 | -2/Section 7 | Found Core Membrane 26288 | -2/Section 7 | Installed Core Membrane, gained immunity to corruption 26771 | -2/Section 7 | Used Subatomic Replicator to create Supercharged Integrated Dissipator 26773 | -2/Section 7 | Installed Supercharged Integrated Dissipator, increased core heat dissipation (+40) 26815 | -2/Section 7 | Found Integrated Mediator 26815 | -2/Section 7 | Installed Integrated Mediator, increased core attachment efficiency 26847 | -2/Section 7 | Found Prototype Processor 26847 | -2/Section 7 | Identified Exp. Melee Analysis Suite 26874 | -2/Section 7 | Found Unknown Device 26874 | -2/Section 7 | Identified Quantum Capacitor 27009 | -2/Section 7 | Spotted S7 Guard 27154 | -2/Section 7 | Found Navigation Efficiency Matrix 27154 | -2/Section 7 | Installed Navigation Efficiency Matrix, process failed with unexpected side effects 27191 | -2/Section 7 | Destroyed S7 Guard 27652 | -2/Section 7 | Spotted Alpha 7 27652 | -2/Section 7 | Spotted Alpha 7 27693 | -2/Section 7 | Destroyed Alpha 7 27710 | -2/Section 7 | Destroyed Alpha 7 27827 | -2/Section 7 | Spotted Executioner 27827 | -2/Section 7 | Spotted Executioner 27858 | -2/Section 7 | Destroyed Executioner 27866 | -2/Section 7 | Destroyed Executioner 28060 | -2/Section 7 | Found Terrabomb 28064 | -2/Section 7 | Found Terrabomb 28095 | -2/Section 7 | Found Transdimensional Reconstructor 28286 | -2/Section 7 | Spotted B-99 Colossus 28298 | -2/Section 7 | Destroyed B-99 Colossus 28407 | -2/Section 7 | Found Prototype Ballistic Gun 28407 | -2/Section 7 | Identified Multirail 28514 | -2/Section 7 | Found Integrity Redistributor 28569 | -2/Section 7 | Found LRC Energy Well 28569 | -2/Section 7 | Installed LRC Energy Well, increased energy storage capacity (+250) 28572 | -2/Section 7 | Found LRC Storage 28572 | -2/Section 7 | Installed LRC Storage, increased inventory capacity (+2) 28860 | -2/Section 7 | Build established: Alien-Tank 28915 | -2/Section 7 | Activated Sigix Exoskeleton 28915 | -2/Section 7 | Received instructions from Sigix Warrior 28923 | -2/Section 7 | Spotted Executioner 28924 | -2/Section 7 | Spotted Executioner 28936 | -2/Section 7 | Allies destroyed Executioner 28937 | -2/Section 7 | Destroyed Executioner 28977 | -2/Section 7 | Used Terrabomb 28977 | -2/Section 7 | Spotted Striker 28977 | -2/Section 7 | Spotted Striker 28995 | -2/Section 7 | Destroyed Striker 28995 | -2/Section 7 | Allies destroyed Striker 29000 | -2/Section 7 | Spotted Striker 29000 | -2/Section 7 | Spotted Striker 29006 | -2/Section 7 | Allies destroyed Striker 29009 | -2/Section 7 | Destroyed Striker 29093 | -2/Section 7 | Found Sigix Sheargun 29096 | -2/Section 7 | Found Sigix Sheargun 29101 | -2/Section 7 | Found Sigix Sheargun 29121 | -2/Section 7 | Spotted Executioner 29142 | -2/Section 7 | Sigix Exoskeleton integrity reduced to 80% 29151 | -2/Section 7 | Allies destroyed Executioner 29165 | -2/Section 7 | Spotted Investigator 29175 | -2/Section 7 | Destroyed Investigator 29186 | -2/Section 7 | Crushed by falling debris 29190 | -2/Section 7 | Sigix Exoskeleton integrity reduced to 60% 29197 | -2/Section 7 | Spotted Executioner 29198 | -2/Section 7 | Fired Sigix Terminator 29198 | -2/Section 7 | Destroyed Executioner 29198 | -2/Section 7 | Destroyed Executioner 29229 | -2/Section 7 | Lost 3 parts (2u1w) 29235 | -2/Section 7 | Destroyed 34 combat bots 29313 | -2/Section 7 | Scanned by Researcher 29314 | -2/Section 7 | Intercept squad dispatched 29319 | -2/Section 7 | Sterilization system engaged 29319 | -2/Section 7 | Non-combat units ordered to evacuate 29320 | -2/Section 7 | Spotted Investigator 29325 | -2/Section 7 | Destroyed Investigator 29326 | -2/Section 7 | Spotted Tracker 29327 | -2/Section 7 | Spotted Tracker 29330 | -2/Section 7 | Destroyed Tracker 29333 | -2/Section 7 | Sigix Exoskeleton integrity reduced to 40% 29338 | -2/Section 7 | Destroyed Tracker 29373 | -2/Section 7 | Found Prototype Launcher 29379 | -2/Section 7 | Destroyed 14 combat bots 29419 | -2/Section 7 | Combat units ordered to evacuate 29573 | -2/Section 7 | Entered Access 29573 | -1/Access | Accompanied by 1 ally (Sigix Warrior) 29573 | -1/Access | Evolved 2 slots: Power x1, Propulsion x1 29718 | -1/Access | Sigix Exoskeleton integrity reduced to 20% 29726 | -1/Access | Identified Containment Facilitator 29743 | -1/Access | Destroyed 17 combat bots 29795 | -1/Access | Found Quantum Capacitor 29860 | -1/Access | Destroyed 7 combat bots 29884 | -1/Access | Spotted Striker 29884 | -1/Access | Spotted Striker 29888 | -1/Access | Destroyed Striker 29893 | -1/Access | Allies destroyed Striker 29927 | -1/Access | Spotted Executioner 29927 | -1/Access | Spotted Executioner 29927 | -1/Access | Allies destroyed Executioner 29936 | -1/Access | Spotted Striker 29941 | -1/Access | Destroyed Executioner 29948 | -1/Access | Destroyed Striker 29949 | -1/Access | Spotted Striker 29958 | -1/Access | Destroyed Striker 29995 | -1/Access | Destroyed 23 combat bots 30047 | -1/Access | Destroyed 10 combat bots 30225 | -1/Access | Intercept squad dispatched 30244 | -1/Access | Spotted Executioner 30247 | -1/Access | Spotted Striker 30253 | -1/Access | Destroyed Executioner 30258 | -1/Access | Destroyed Striker 30264 | -1/Access | Spotted Tracker 30265 | -1/Access | Spotted Tracker 30270 | -1/Access | Spotted Investigator 30272 | -1/Access | Warped through subspace 30279 | -1/Access | Destroyed 13 combat bots 30289 | -1/Access | Lost 5 parts (2p3u) 30368 | -1/Access | Spotted Executioner 30408 | -1/Access | Destroyed Executioner 30427 | -1/Access | Spotted Executioner 30432 | -1/Access | Destroyed 10 combat bots 30432 | -1/Access | Spotted Executioner 30440 | -1/Access | Destroyed Executioner 30471 | -1/Access | Spotted Executioner 30471 | -1/Access | Spotted Striker 30489 | -1/Access | Destroyed Executioner 30493 | -1/Access | Destroyed Striker 30508 | -1/Access | Destroyed Executioner 30515 | -1/Access | Spotted Executioner 30515 | -1/Access | Spotted Executioner 30528 | -1/Access | Lost 3 parts (1n1u1w) 30532 | -1/Access | Destroyed Executioner 30574 | -1/Access | Destroyed 17 combat bots 30574 | -1/Access | Destroyed Executioner 30587 | -1/Access | Spotted Executioner 30588 | -1/Access | Destroyed Executioner 30593 | -1/Access | Destroyed Striker 30609 | -1/Access | Spotted Executioner 30609 | -1/Access | Spotted Striker 30609 | -1/Access | Spotted Executioner 30609 | -1/Access | Spotted Striker 30609 | -1/Access | Spotted Executioner 30610 | -1/Access | Destroyed Striker 30611 | -1/Access | Destroyed Executioner 30611 | -1/Access | Destroyed Executioner 30614 | -1/Access | Spotted Executioner 30614 | -1/Access | Spotted Executioner 30618 | -1/Access | Sterilization system engaged 30622 | -1/Access | Destroyed Striker 30625 | -1/Access | Destroyed Executioner 30625 | -1/Access | Spotted Striker 30633 | -1/Access | Destroyed Executioner 30650 | -1/Access | Spotted Executioner 30652 | -1/Access | Released all parts (11) 30656 | -1/Access | Core integrity fell below 50% 30659 | -1/Access | Spotted Striker 30659 | -1/Access | Spotted Executioner 30659 | -1/Access | Spotted Striker 30659 | -1/Access | Spotted Striker 30659 | -1/Access | Spotted Striker 30665 | -1/Access | Emitted hypermatrix ping 30666 | -1/Access | Used Terrabomb 30670 | -1/Access | Assembled emerged from beneath the floor 30670 | -1/Access | Destroyed 28 combat bots 30678 | -1/Access | Assembled emerged from beneath the floor 30682 | -1/Access | Lost 11 parts (1p2n5u3w) 30696 | -1/Access | Assembled emerged from beneath the floor 30701 | -1/Access | Core integrity fell below 20% 30711 | -1/Access | Assembled emerged from beneath the floor 30727 | -1/Access | Lost 7 allies 30771 | -1/Access | Used Integrity Redistributor, redistributed integrity to core (+49) 30777 | -1/Access | Destroyed by H-88 Terminator with KE Penetrator Last Messages --------------- 30756_ Slammed into K-01 Serf. 30759_ Navigation matrix triggers involuntary quantum shift. 30763_ C-30 ARC bursts open, deploying its payload. 30763_ P-80 Master unfolds itself. 30764_ K-01 Serf collects debris. 30767_ Slammed into K-01 Serf. 30767_ Slug penetrates Terminal. 30767_ Penetrated by Slug. 30767_ A-15 Conveyor destroyed. 30768_ K-01 Serf collects debris. 30770_ Penetrated by Slug. 30771_ K-01 Serf collects debris. 30771_ P-80 Master resets K-01 Serf, system corruption cleaned. 30771_ Integrity redistributed to core (+49). 30772_ Dropped Hvy. Hardcell Cannon. 30774_ Penetrated by Slug. 30776_ Slug penetrates Wall. 30776_ K-01 Serf collects debris. 30777_ Penetrated by Slug. [Achievement: Rambo] Map ----- +----------------------------------------------------+ | ##"####+### # #?? #?????????? | | " # # #? #?????????? | | "" # # #? #?????????? | | """""" # # # #?????????? | | """""" ""# # # === #?????????? | | "" ""# !! # + === #?????????? | | "" ""# !! # # == #?????????? | | G# +!/+ #?????????? | | ""# #//### ##########?????????? | | ""# #/%#??##??????????????????? | | ""##############pY#??????????????????????? | | #????????????#!/#??????????????????????? | | #????????????#k=#######"???????????????? | | ###########????????????# g"""T""""???????????????? | | ???????????????????????# """ """"???????????????? | | ???????????????????????# ] "???????????????? | | ???????????????????????# "???????????????? | | ???????????????????????# "???????????????? | | ???????????????????????# "???????????????? | | ???????????????????????# s "???????????????? | | ???????????????????????# "???????????????? | | ???????????????????????# "???????????????? | | ???????????????????????# h "???????????????? | | ???????????????????????# #######"???????????????? | | ???????????????????????# #??????????????????????? | | ???????????????????????# @#??????????????????????? | | ???????????????????????# w#??????????????????????? | | ???????????????????????# #??????????????????????? | | ???????????????????????# +??????????????????????? | | ???????????????????????# #??????????????????????? | | ???????????????????????# #??????????????????????? | | ???????????????????????# #??????????????????????? | | ???????????????????????# #??????????????????????? | | ???????????????????????# #??????????????????????? | | ???????????????????????# ???????????????????????? | | ???????????????????????+ ???????????????????????? | | ???????????????????????# ???????????????????????? | | ???????????????????????#k ???????????????????????? | | ???????????????????????? ???????????????????????? | | ???????????????????????? ???????????????????????? | | ???????????????????????? ???????????????????????? | | ?????????????????????????????????????????????????? | | ?????????????????????????????????????????????????? | | ?????????????????????????????????????????????????? | | ?????????????????????????????????????????????????? | | ?????????????????????????????????????????????????? | | ?????????????????????????????????????????????????? | | ?????????????????????????????????????????????????? | | ?????????????????????????????????????????????????? | | ?????????????????????????????????????????????????? | +----------------------------------------------------+ Best States ------------- Heat Dissipation 156 Coolant Potential 120 Energy Generation 111 Energy Capacity 1975 Matter Stores 300 Matter Capacity 300 Sight Range 22 Terrain Scan Range 14 Terrain Scan Density 210 ECM Strength 1 Jamming Range 16 Power Amplification 90 Additional Mass Support 9 Base Temperature (-) 200 EM Shielding 4 Armor Coverage 600 Resistance: KI 35 Resistance: TH 85 Resistance: EX 35 Resistance: EM 100 Resistance: I 35 Resistance: S 35 Resistance: P 35 Power Shielding 33 Propulsion Shielding 33 Utility Shielding 66 Weapon Shielding 66 Weapon Cycling 25 Phase Shifting 10 Evasion (%) 70 Targeting Accuracy 8 Target Analysis 8 Armor Integrity Analysis 40 Recoil Reduction 6 Particle Charging 30 Kinecelleration 40 Offensive Hacking 36 Defensive Hacking 10 Relay Coupler Types 5 Relay Coupler Value 180 Item Schematics ----------------- Plasma Sword | -2/Quarantine | Archive Exp. Cooling System | -2/Section 7 | Scanalyzed Exp. Heat Sink | -2/Section 7 | Scanalyzed Robot Schematics ------------------ None Fabricated ------------ Lrn. Sensor Array | x2 | -4/Factory | Preloaded Lgt. Quantum Reactor | x2 | -3/Testing | Preloaded Repaired ---------- Nothing Alien Tech Used ----------------- Sigix Terminator Core Reset Matrix Core Physics Calibrator Integrity Redistributor Core Regenerator Core Membrane Subatomic Replicator Supercharged Integrated Dissipator Integrated Mediator Navigation Efficiency Matrix LRC Energy Well LRC Storage Terrabomb Sigix Sheargun Transdimensional Reconstructor Achievements -------------- Artifact Hunter Infiltrator Rambo Ride The Lightning Superinsulated Challenges ------------ None Game ------ Seed HackingCompactSource Manual? 0 Play Time 07:48:25 Cumulative 268.8 hours Start 2025.07.15 @ 19:53:43 End 2025.07.19 @ 15:42:07 Sessions 9 Manual Loads 0 Difficulty Explorer Special Mode None Game No. 105 Rogue 34 Adventurer 68 Explorer 3 Win Type - Total 22 Types 14/1/1/4/1/0/0/0/0/1 Lore% 74 Gallery% 72 Achievement% 69 Wizard Run 0 Options --------- Layout 0 ASCII 0 Keyboard 0 Movement Numpad Keybinds 0 Fullscreen 1 Font 24/Smallcaps Map View 76x50 Zoom Use 0% Tactical HUD 1 Map Filters NONE Filters NONE Steam 1 RUN: 9e793a7a-d85c-424a-ba36-50663509a238